Cogmind - Beta 16 @@@ ROGUE MODE // 2025.11.10 @ 21:18:52 Player: Cherman0 Result: Core destroyed Performance ------------- Evolutions (8) 4000 Regions Visited (29) 5800 Robots Destroyed (696) 3480 Value Destroyed (36218) 36218 Prototype IDs (88) 1760 Alien Tech Used (13) 2600 Bonus (24710) 24710 TOTAL SCORE: 78568 Bonus ------- Triggered High Security 1000 High Alert Combat Kills 17306 Follower Combat Kills 2650 Entered Garrisons 1200 Used RIF Installer 3500 Network Hubs Disabled 200 Built Enhanced Grunts 300 A7 Reached Mainframe 300 Met R17 at Cetus 500 Met R17 at Research 2000 Friendly Fire -4246 Cogmind --------- Core Integrity 0/1450 Matter 304/425 Energy 690/690 System Corruption 30% +Membrane Temperature Cool (0) +ITN Movement Walking (178) Ox1 +NEM 1 Location -2/Section 7 Parts ------- > --- POWER (3) -------- Quantum Reactor Quantum Reactor Light Quantum Reactor > --- PROPULSION (6) --- Centrium Leg Centrium Leg Centrium Leg Centrium Leg High-density Centrium Leg > --- UTILITY (11) ----- Experimental Cooling System (fused) High-capacity Storage Unit Spectral Analyzer Experimental Core Analyzer Advanced Cloaking Device Heavy Regenerative Plating AEGIS Remote Shield Microwarp Drive > --- WEAPON (3) ------- Compact HERF Cannon Potential Cannon > --- INVENTORY (20) --- Experimental Cooling System Experimental Cooling System Advanced Energy Well (257) Matter Compressor (0) Graphene Brace Advanced Force Field Long-range Tractor Beam Subatomic Replicator Spacefold Activator Enhanced Nova Cannon Perforator Neutron Missile Launcher Advanced Remote Datajack Sigix Broadsword Peak State ------------ > --- POWER ------------ Quantum Reactor Quantum Reactor Light Quantum Reactor > --- PROPULSION ------- Thunder Leg Centrium Leg Centrium Leg Centrium Leg Centrium Leg High-density Centrium Leg > --- UTILITY ---------- Experimental Cooling System High-capacity Storage Unit Spectral Analyzer Experimental Core Analyzer Heavy Regenerative Plating Relay Coupler [Behemoth] Spacefold Activator Microwarp Drive > --- WEAPON ----------- Enhanced Nova Cannon Sigix Broadsword > --- INVENTORY -------- Experimental Cooling System Experimental Cooling System Energy Well Advanced Energy Well Matter Compressor Advanced Cloaking Device Graphene Brace Advanced Force Field AEGIS Remote Shield Long-range Tractor Beam High-powered Transdimensional Reconstructor High-powered Transdimensional Reconstructor Subatomic Replicator Compact HERF Cannon Potential Cannon Perforator Neutron Missile Launcher Advanced Remote Datajack [Rating: 240] Favorites ----------- Power Heavy Ion Engine Engine Heavy Ion Engine Power Core Hybrid Fission Core Reactor Hybrid Antimatter Reactor Propulsion Light Treads Treads Light Treads Leg Centrium Leg Flight Unit Diametric Drive Utility Huge Storage Unit Device Seismic Detector Storage Huge Storage Unit Processor Advanced Targeting Computer Hackware Relay Coupler [NC] Protection Improved Light Armor Plating Artifact Microwarp Drive Weapon Cooled Plasma Rifle Energy Gun Cooled Plasma Rifle Energy Cannon Compact HERF Cannon Ballistic Gun Autogun Ballistic Cannon Perforator Launcher Mini Grenade Launcher Special Weapon Advanced Remote Datajack Impact Weapon Flail Slashing Weapon Sigix Broadsword Piercing Weapon Kinetic Spear Special Melee Weapon Improved Datajack Build | -11 -10 -10 -9 -9 -9 -8 -8 -8 -8 -8 -7 -7 -7 -7 -6 -6 -5 -5 -4 -4 -4 -4 -4 -3 -3 -2 -2 -2 -2 ------- Run | Yrd Mat Min Mat Min Exi Min Mat Gar Mat Gar Fac Was Fac Gar Fac Gar Fac Gar Fac Ext Cet Arc Hub Res Tes Res Qua Gar Sec Slots Evolved 16 | . . . 2 . . . 2 . . . 2 . . . 2 . 2 . 2 . . . . 2 . 2 . . . Power 2 | . . . . . . . . . . . . . . . . . 1 . . . . . . . . 1 . . . Propulsion 4 | . . . 1 . . . . . . . . . . . 1 . . . 1 . . . . 1 . . . . . Utility 9 | . . . 1 . . . 1 . . . 2 . . . 1 . 1 . 1 . . . . 1 . 1 . . . Weapon 1 | . . . . . . . 1 . . . . . . . . . . . . . . . . . . . . . . Parts Attached 323 | 4 8 1 22 2 . 1 12 9 6 7 25 12 . 7 5 20 11 21 7 13 7 5 1 11 28 62 2 3 11 Power 39 | . 1 . 2 . . . . 1 1 . 1 1 . 1 . 2 1 5 1 3 1 . . 2 2 11 . 1 2 Engine 6 | . 1 . 2 . . . . 1 1 . . . . . . . . 1 . . . . . . . . . . . Core 6 | . . . . . . . . . . . 1 . . . . . 1 2 . 1 . . . 1 . . . . . Reactor 27 | . . . . . . . . . . . . 1 . 1 . 2 . 2 1 2 1 . . 1 2 11 . 1 2 Propulsion 77 | 2 1 . 8 1 . . 8 1 2 3 8 2 . . 1 4 2 6 2 3 2 1 . . 6 13 . . 1 Treads 58 | 2 1 . 8 1 . . 8 1 2 3 8 2 . . 1 4 2 6 1 3 2 1 . . . 2 . . . Leg 18 | . . . . . . . . . . . . . . . . . . . . . . . . . 6 11 . . 1 Wheel . | . . . . . . . . . . . . . . . . . . . . . . . . . . . . . . Hover . | . . . . . . . . . . . . . . . . . . . . . . . . . . . . . . Flight 1 | . . . . . . . . . . . . . . . . . . . 1 . . . . . . . . . . Utility 131 | 1 2 1 5 1 . 1 1 2 2 2 9 4 . 6 3 8 4 8 3 7 3 3 . 6 15 24 1 1 8 Device 65 | 1 1 1 . 1 . . . 1 1 1 4 2 . 1 1 5 2 3 . 2 1 3 . 4 10 17 . . 3 Storage 7 | . 1 . 1 . . . . . . . . . . . 1 . . . . . . . . . 1 3 . . . Processor 8 | . . . . . . . . . . . 1 . . . . . . 1 . . . . . 1 2 3 . . . Hackware 12 | . . . . . . . . . . . 1 1 . . 1 1 1 2 2 . . . . . 1 . . 1 1 Protection 37 | . . . 4 . . 1 1 1 1 1 3 1 . 5 . 2 1 2 1 5 2 . . 1 1 1 1 . 2 Artifact 2 | . . . . . . . . . . . . . . . . . . . . . . . . . . . . . 2 Weapon 76 | 1 4 . 7 . . . 3 5 1 2 7 5 . . 1 6 4 2 1 . 1 1 1 3 5 14 1 1 . Energy Gun 26 | . . . 2 . . . 2 1 1 . 1 4 . . . 3 3 1 . . 1 . . 2 1 4 . . . Energy Cannon 14 | . . . 1 . . . . . . . . . . . 1 1 1 . 1 . . . . 1 1 6 . 1 . Ballistic Gun 18 | 1 2 . 1 . . . 1 1 . 1 6 . . . . . . 1 . . . 1 . . . 3 . . . Ballistic Cannon 2 | . . . . . . . . . . . . . . . . . . . . . . . . . 2 . . . . Launcher 8 | . 2 . 3 . . . . . . 1 . . . . . . . . . . . . 1 . 1 . . . . Special Weapon 3 | . . . . . . . . 1 . . . 1 . . . 1 . . . . . . . . . . . . . Impact Weapon 1 | . . . . . . . . 1 . . . . . . . . . . . . . . . . . . . . . Slashing Weapon 1 | . . . . . . . . . . . . . . . . . . . . . . . . . . . 1 . . Piercing Weapon 2 | . . . . . . . . . . . . . . . . 1 . . . . . . . . . 1 . . . Special Melee Weapon 1 | . . . . . . . . 1 . . . . . . . . . . . . . . . . . . . . . Unidentified Prototypes 51 | . . . 4 . . . 2 . 1 . . 1 . . 1 1 . . . . 3 . 1 4 12 5 2 1 13 Corrupted Parts 7 | . . . . . . . . . . . . . . . . . . 3 . . 1 1 . . 1 . . . 1 System Corruption 36 | . . . . . . . . . . . . . . . . . . 8 . . 4 13 . . 2 . . . 9 Parts Lost 56 | . . . . . . . . 2 2 4 . . . 1 1 7 4 3 2 . . . . . 6 20 . . 4 Power 11 | . . . . . . . . . . 1 . . . . . . 1 2 . . . . . . 2 5 . . . Propulsion 7 | . . . . . . . . . . . . . . . . 2 2 . 1 . . . . . . 1 . . 1 Utility 29 | . . . . . . . . 1 1 2 . . . 1 1 4 1 1 1 . . . . . 3 11 . . 2 Weapon 9 | . . . . . . . . 1 1 1 . . . . . 1 . . . . . . . . 1 3 . . 1 Highest Loss Streak 8 | . . . . . . . . 1 1 3 . . . 1 1 5 4 1 1 . . . . . 5 8 . . 1 To Critical Strikes . | . . . . . . . . . . . . . . . . . . . . . . . . . . . . . . Average Backups 22 | 6 13 15 21 24 25 25 24 24 24 24 24 23 23 23 23 24 24 24 22 24 23 23 22 23 22 20 17 18 16 Power 1 | 1 1 1 1 1 1 1 1 1 1 1 1 1 1 1 1 1 1 1 1 2 1 1 . 1 1 . . . . Propulsion 3 | 4 2 2 5 6 6 6 7 6 5 4 4 1 2 2 1 . 1 1 1 1 1 1 1 1 1 2 1 . . Utility 8 | . 1 2 2 4 5 5 3 4 6 8 10 10 10 10 8 9 10 12 11 11 12 13 13 12 11 8 9 9 9 Weapon 8 | 1 7 7 10 10 11 11 9 10 9 8 7 9 8 8 10 10 10 7 7 7 6 6 6 6 7 6 5 4 4 Tool/Special . | . . . . . . . . . . . . . . . . . . . . . . . . . . . . . . Unused Backups 75 | . 5 . 9 1 . . 7 . 3 4 3 9 . 2 1 4 1 2 . 5 4 . 1 . 4 4 1 2 3 Power 8 | . 1 . . . . . . . 1 . . 1 . . . 2 . . . . 2 . . . 1 . . . . Propulsion 16 | . 2 . 1 . . . 3 . . . . 1 . . . . . . . 3 1 . . . 1 3 1 . . Utility 30 | . 1 . 2 . . . 2 . 1 4 3 4 . 1 . 1 1 1 . 2 1 . 1 . . 1 . 2 2 Weapon 19 | . 1 . 5 1 . . 2 . 1 . . 3 . 1 1 1 . 1 . . . . . . 2 . . . . Tool/Special 2 | . . . 1 . . . . . . . . . . . . . . . . . . . . . . . . . 1 Average Slot Usage (%) 94 | . 99 100 99 100 100 100 99 99 100 99 99 94 92 91 85 88 91 98 93 93 90 88 88 84 83 91 98 94 87 Engine 4 | . 14 14 11 11 11 11 9 9 9 8 1 . . . . . . . . . . . . . . . . . . Core 1 | . . . . . . . . . . . 5 1 . . . . 3 7 3 . . . . . 2 1 . . . Reactor 4 | . . . . . . . . . . . . 5 7 7 6 6 4 1 6 9 10 10 10 9 5 10 13 13 13 Treads 19 | . 27 28 33 33 33 33 27 26 27 27 23 17 15 15 12 17 16 22 20 21 16 15 15 14 13 . . . . Leg 3 | . . . . . . . . . . . . . . . . . . . . . . . . . . 19 26 26 25 Device 14 | . 14 14 11 10 11 10 9 8 9 8 7 10 15 18 23 19 20 19 10 10 15 14 15 18 16 21 21 23 12 Storage 7 | . 14 14 11 11 11 11 9 9 9 9 7 7 7 7 6 6 5 5 5 5 5 5 5 4 4 6 8 4 4 Processor 5 | . . . . . . . . . . . 6 7 7 7 6 6 5 5 10 10 10 10 10 9 9 13 13 13 9 Hackware 4 | . . . . . . . . . . . 6 11 7 2 1 3 6 7 15 12 10 10 10 9 10 . . . 4 Protection 8 | . . . 10 11 11 11 17 18 18 18 14 7 7 7 6 7 4 5 4 6 5 5 5 4 4 2 3 4 4 Energy Gun 7 | . . . . . . . . 2 . . . 8 23 22 19 16 15 16 13 13 14 12 13 13 11 5 . . . Ballistic Gun 10 | . 27 28 21 22 22 21 26 22 26 22 21 12 . . . . . . . . . 2 . . . . 9 . . Peak Build Rating 240 | 7 11 11 20 20 20 20 28 32 32 34 49 69 65 70 81 87 106 118 131 134 149 148 144 172 182 197 195 198 240 Average Rating 85 | 6 9 10 17 19 19 19 24 29 30 30 43 56 65 66 80 80 95 91 120 128 143 145 142 162 164 180 186 196 218 On Entrance 80 | 6 7 10 11 20 19 20 20 28 31 31 31 46 65 65 68 81 85 75 112 128 133 148 148 144 161 164 185 195 190 Avg Prop Armor Cover (%) 6 | . . . . . . . . . . . . . . . . . . 4 . . . . 6 . 7 8 . . . Naked Turns . | . . . . . . . . . . . . . . . . . . . . . . . . . . . . . . Heaviest Build 195 | 14 32 32 106 102 106 102 108 110 104 110 122 123 123 139 140 163 151 149 143 157 152 153 145 157 160 195 116 134 171 Greatest Support 240 | 40 40 40 60 60 60 60 69 69 69 69 79 90 90 90 140 140 135 133 165 165 187 187 187 240 240 173 171 171 175 Greatest Overweight (x) 2 | . . . 1 1 1 1 1 2 1 1 1 1 1 1 . 1 2 1 . 1 . . . . 1 2 . . 1 Average Overweight (x) . | . . . . 1 1 1 1 1 1 1 1 1 1 1 . . . . . . . . . . . . . . . Largest Inventory Capacity 25 | 8 15 15 25 25 25 25 25 25 25 25 25 25 25 25 25 25 25 25 25 25 25 25 25 25 25 25 20 20 20 Average Capacity 23 | 8 13 15 22 25 25 25 25 25 25 25 25 25 25 25 25 25 25 25 25 25 25 25 25 25 25 23 20 20 20 Most Carried 25 | 8 15 15 25 25 25 25 25 25 25 25 25 25 25 25 25 25 25 25 25 25 25 25 25 25 25 25 20 20 20 Average Carried 23 | 6 13 14 21 24 25 25 24 24 24 24 24 24 25 24 24 24 24 24 22 24 24 24 24 24 24 22 19 19 19 Final Capacity 25 | 8 15 15 25 25 25 25 25 25 25 25 25 25 25 25 25 25 25 25 25 25 25 25 25 25 25 20 20 20 20 Final Carried 25 | 8 15 15 25 25 25 25 25 25 25 25 25 25 25 25 24 25 24 25 23 25 25 25 25 25 25 20 20 20 16 Class Distribution -------------------- 25% | Scavenger-Tank 20% | Scavenger-Mutant 11% | Tank 10% | Scavenger-Gunner 8% | Mutant 5% | Commander-Tank 5% | Bothacker-Tank 3% | Scientist-Tank Dominant Class ---------------- Mutant | -10/Materials Commander-Mutant | -10/Mines Scavenger-Mutant | -9/Materials Scavenger-Mutant | -9/Mines Scavenger-Mutant | -9/Exiles Scavenger-Mutant | -8/Mines Scavenger-Tank | -8/Materials Tank | -8/Garrison Tank | -8/Materials Scientist-Tank | -8/Garrison Scientist-Tank | -7/Factory Scavenger-Tank | -7/Waste Scavenger-Tank | -7/Factory Scavenger-Tank | -7/Garrison Scavenger-Tank | -6/Factory Scavenger-Tank | -6/Garrison Scavenger-Tank | -5/Factory Scavenger-Gunner | -5/Garrison Bothacker-Tank | -4/Factory Commander-Tank | -4/Extension Commander-Tank | -4/Cetus Commander-Gunner | -4/Archives Scavenger-Gunner | -4/Hub_04(d) Scavenger-Tank | -3/Research Scavenger-Tank | -3/Testing Scavenger-Gunner | -2/Research Scavenger-Gunner | -2/Quarantine Scavenger-Mutant | -2/Garrison Scavenger-Mutant | -2/Section 7 Resources | -11 -10 -10 -9 -9 -9 -8 -8 -8 -8 -8 -7 -7 -7 -7 -6 -6 -5 -5 -4 -4 -4 -4 -4 -3 -3 -2 -2 -2 -2 ----------- Run | Yrd Mat Min Mat Min Exi Min Mat Gar Mat Gar Fac Was Fac Gar Fac Gar Fac Gar Fac Ext Cet Arc Hub Res Tes Res Qua Gar Sec Matter Collected 23265 | 300 399 253 886 130 18 175 447 923 595 1286 1246 735 . 298 107 658 190 538 510 1067 310 441 177 513 2451 6804 215 316 1277 Remotely 5357 | . . . . . . . . . . 32 97 . . . . . . . . . . . . . . 4474 215 290 249 Salvage Created 40493 | 195 375 270 1211 111 . 211 567 1038 814 906 1446 1923 75 1027 37 1105 377 1600 1934 1800 378 611 511 1380 4156 13257 201 711 2266 Parts 1500 | 19 17 23 82 12 . 19 33 59 52 49 85 42 5 55 1 48 13 68 55 52 16 41 14 38 149 344 4 26 79 Haulers Intercepted 17 | . 1 . 6 . . . 2 . 3 . 1 . 1 . . . . . . . . . . . . 3 . . . Recyclers Shooed 14 | 1 1 . . . . . . . . . 2 . . . . . . . 7 1 . . . . 1 . . . 1 Parts Field Recycled . | . . . . . . . . . . . . . . . . . . . . . . . . . . . . . . Retrieved Matter . | . . . . . . . . . . . . . . . . . . . . . . . . . . . . . . Parts Self-Destructed . | . . . . . . . . . . . . . . . . . . . . . . . . . . . . . . Prevented . | . . . . . . . . . . . . . . . . . . . . . . . . . . . . . . Parts Restored . | . . . . . . . . . . . . . . . . . . . . . . . . . . . . . . Kills | -11 -10 -10 -9 -9 -9 -8 -8 -8 -8 -8 -7 -7 -7 -7 -6 -6 -5 -5 -4 -4 -4 -4 -4 -3 -3 -2 -2 -2 -2 ------- Run | Yrd Mat Min Mat Min Exi Min Mat Gar Mat Gar Fac Was Fac Gar Fac Gar Fac Gar Fac Ext Cet Arc Hub Res Tes Res Qua Gar Sec Combat Hostiles Destroyed 580 | . 8 7 21 4 . 11 9 29 13 27 26 6 . 21 1 20 3 35 14 24 4 1 6 21 66 163 . 10 30 Melee 4 | . . . . . . . . . . . . . . . . . . . . . . . . . . . . 4 . Guns 280 | . 6 7 19 4 . 5 9 20 13 15 22 6 . 17 1 19 2 23 10 19 2 1 5 13 21 21 . . . Cannons 137 | . . . . . . . . . . . . . . . . . . 2 . . . . . . 5 117 . 4 9 AOE 107 | . 2 . 2 . . 6 . 8 . 12 4 . . 4 . . . 7 2 . . . . 5 31 13 . . 11 Classes Destroyed 26 | 2 5 . 3 . . . 1 4 . 1 1 1 . . . 3 . 2 . . . . . . 3 . . . . Worker 14 | . . . 2 . . . . . . . 2 . . . . . . . 3 . . . . 1 5 1 . . . Builder 10 | . . . . . . . . . . . 1 . . . . . . . . . . . . 1 8 . . . . Tunneler 16 | 6 1 1 . 2 . . . . . . 1 . . . . . 1 . 2 . . . 1 . . 1 . . . Hauler 17 | . 1 . 6 . . . 2 . 3 . 1 . 1 . . . . . . . . . . . . 3 . . . Recycler 16 | 1 . . . . . . . . . . 3 . . . . . 1 . 7 . . . . . . 2 1 . 1 Mechanic 7 | . . . . . . . . . . . . . . . . . . . . . . . . . 2 5 . . . Operator 15 | . . . 1 . . . . 1 . . 2 . . . . . . . . 1 . 9 . . . . . . 1 Watcher 16 | . 2 . . . . . . . 3 . . . . . . . . . 1 1 . . 2 2 2 1 . . 2 Swarmer 90 | . 1 6 4 4 . 8 . 7 3 5 4 . . 6 . . . 17 3 . . . . 3 4 12 . . 3 Cutter 5 | . . . . . . . . . . . . . . . . . . 1 . . . . . . . . . 4 . Saboteur 9 | . . . . . . . . . . . . . . . . . . . . . . . . . 1 7 . . 1 Grunt 232 | . 6 1 8 . . 3 5 10 5 13 15 . . 6 1 9 . 7 7 12 . . 1 9 31 75 . . 8 Brawler 28 | . . . . . . . 1 4 . . . . . . . . . . . . . . . . 2 18 . . 3 Duelist 29 | . . . . . . . . 2 . 1 . . . . . 1 . . 1 . . . . . 3 19 . . 2 Protector 17 | . . . . . . . . 1 . 1 1 . . . . . . . . . . . . . 1 12 . . 1 Researcher 8 | . . . . . . . . . . . . . . . . . . . . . . . . . 4 . 1 . 3 Sentry 62 | . . . 9 . . . 3 3 4 1 4 . . 6 . 2 3 4 . 9 . 1 3 1 . 2 . 5 2 Demolisher 3 | . . . . . . . . 1 . 1 . . . . . . . . . . . . . 1 . . . . . Specialist 1 | . . . . . . . . . . . . . . . . 1 . . . . . . . . . . . . . Hunter 33 | . . . . . . . . 1 1 . 1 . . 2 . 1 . 1 2 2 . . 2 . 15 5 . . . Programmer 47 | . . . . . . . . . . 5 1 . . 1 . 4 . 4 2 . . . . 2 9 13 . 1 5 Behemoth 2 | . . . . . . . . . . . . . . . . . . 1 . 1 . . . . . . . . . Compactor 6 | . . . . . . . . . . . . 6 . . . . . . . . . . . . . . . . . Cetus Guard 4 | . . . . . . . . . . . . . . . . . . . . . 4 . . . . . . . . S7 Guard 3 | . . . . . . . . . . . . . . . . . . . . . . . . . . . . . 3 Investigator 1 | . . . . . . . . . . . . . . . . . . . . . . . . . . 1 . . . Striker 6 | . . . . . . . . . . . . . . . . 2 . . . . . . . 4 . . . . . Executioner 4 | . . . . . . . . . . . . . . . . 1 . . . . . . . 1 . . . . 2 Subdweller 1 | . 1 . . . . . . . . . . . . . . . . . . . . . . . . . . . . Wasp 1 | . . . . . . . . . . . . . 1 . . . . . . . . . . . . . . . . Thug 5 | . . 2 . . . . . . . . . . . . . . . . . . . 3 . . . . . . . Martyr 2 | . . . . . . . . . . . . 2 . . . . . . . . . . . . . . . . . Best Kill Streak 72 | 4 3 3 4 4 . 4 3 4 3 5 9 2 1 8 1 3 1 4 13 7 2 4 2 6 26 72 1 5 7 Combat Bots Only 69 | . 2 3 3 4 . 4 3 4 3 5 6 2 . 8 1 3 1 4 7 7 2 1 2 6 21 69 . 5 7 Max Kills in Single Turn 6 | 1 1 1 3 1 . 3 1 3 1 3 2 2 2 2 1 1 1 4 2 2 1 2 1 2 6 5 1 1 2 Gunslinging 1 | . . . 1 . . . . . . . . . . . . . . 1 . . . . . 1 1 . . . . Exploded 6 | . 1 . 2 . . 3 . 3 . 3 2 . . 2 . . . 4 2 . . . . 2 6 2 . . 2 Melee 1 | . . . . . . . . . . . . . . . . . . . . . . . . . . . . 1 . Uniques/NPCs Destroyed 1 | . . . . . . . . . . . . . . . . . . . . . 1 . . . . . . . . A7 (-4/Cetus) Combat | -11 -10 -10 -9 -9 -9 -8 -8 -8 -8 -8 -7 -7 -7 -7 -6 -6 -5 -5 -4 -4 -4 -4 -4 -3 -3 -2 -2 -2 -2 -------- Run | Yrd Mat Min Mat Min Exi Min Mat Gar Mat Gar Fac Was Fac Gar Fac Gar Fac Gar Fac Ext Cet Arc Hub Res Tes Res Qua Gar Sec Hostile Shots Fired 2500 | . 48 13 69 15 . 18 18 51 37 114 197 . . 139 33 159 96 122 106 121 15 4 41 77 335 390 24 49 209 Missed 800 | . 13 3 25 4 . 2 6 16 10 34 59 . . 38 12 51 28 48 21 32 7 1 11 21 123 130 12 9 84 Hits 1700 | . 35 10 44 11 . 16 12 35 27 80 138 . . 101 21 108 68 74 85 89 8 3 30 56 212 260 12 40 125 Melee 71 | . . . . . . . . 3 . . . . . . . 21 . . 8 . . . . 3 7 21 . 8 . Projectile 1629 | . 35 10 44 11 . 16 12 32 27 80 138 . . 101 21 87 68 74 77 89 8 3 30 53 205 239 12 32 125 AOE 12 | . . . . . . . . 2 . 3 . . . 4 . . . 1 . . . . . 2 . . . . . Critical Strikes 86 | . 2 . 4 . . . . 5 1 4 2 . . 1 1 6 . 6 4 1 1 . . . 13 21 . 7 7 Actively Blocked 19 | . . . . . . . . . . . . . . . . . . . . . . . . . 8 2 . 7 2 Part Disruptions 5 | . . . . . . . . . . . . . . . . . . . . . . . . . 4 1 . . . Damage Taken 26887 | . 501 83 551 88 . 225 193 599 376 1206 1460 . . 951 274 2535 834 1079 1278 1112 130 36 577 864 3573 4225 270 692 3175 Core 2697 | . 78 15 42 8 . 43 . 79 48 124 107 . . 72 3 180 86 103 122 85 . . 21 23 242 329 . 28 859 Absorbed by Shields 8554 | . . . . . . . . . . 122 391 . . 248 . 20 186 292 454 877 135 38 . 896 914 2223 . 443 1315 Reduced by Siege Mode 458 | . . . . . . . . . . . . . . 19 . 173 . . 27 38 . . . 24 177 . . . . Ignored by Resistances 275 | . . . . . . . . . . . . . . . 12 263 . . . . . . . . . . . . . Regen/Repaired (Parts) 4620 | . 208 . 257 . . . . . . . . . . 56 201 . . . 427 455 . . . 97 894 . 72 201 1752 Core Remaining (%) 76 | 100 . 62 . . . 76 . . . 54 . . . 74 . 78 . 81 . . . . 80 . 79 . . . . Volleys Fired 1745 | 15 43 24 72 11 . 14 25 60 37 60 68 65 1 58 17 96 15 101 70 133 22 78 40 62 142 246 8 22 140 Largest 3 | 2 2 2 2 2 . 2 3 3 3 3 3 3 3 3 3 3 3 3 3 3 3 3 3 3 3 3 3 1 2 Hottest 305 | 40 60 46 46 46 . 46 69 100 71 71 136 225 176 225 176 230 113 161 161 113 72 72 113 113 142 305 114 120 294 Shots Fired 3325 | 30 86 49 143 22 . 25 75 144 111 153 192 72 3 118 37 220 37 215 148 258 65 85 84 159 279 351 11 22 131 Gun 2645 | 30 82 49 142 22 . 23 75 128 111 138 187 65 3 112 31 190 33 190 130 191 65 85 66 148 203 141 5 . . Cannon 436 | . . . . . . . . . . . . . . . . 18 2 16 6 1 . . 14 4 41 191 6 19 118 Launcher 108 | . 4 . 1 . . 2 . 16 . 15 5 . . 2 . 8 . 3 1 . . . . 3 22 19 . . 7 Special 136 | . . . . . . . . . . . . 7 . 4 6 4 2 6 11 66 . . 4 4 13 . . 3 6 Kinetic 1242 | 30 82 49 142 22 . 23 75 116 111 138 186 50 . 6 . 7 . 6 . . . 67 . . 8 117 5 2 . Thermal 1706 | . . . . . . . . . . . 1 15 3 106 31 201 35 200 136 192 65 18 80 152 224 205 . 7 35 Explosive 88 | . 4 . 1 . . 2 . 16 . 15 5 . . 2 . 8 . 3 1 . . . . 3 14 7 . . 7 Electromagnetic 153 | . . . . . . . . 12 . . . . . . . . . . . . . . . . 20 22 6 10 83 Robot Hit Streak 40 | 11 9 10 14 5 . 17 17 21 29 22 40 31 1 15 14 19 12 23 26 34 14 10 8 12 16 16 8 9 10 Robot Miss Streak 12 | 1 4 3 5 5 . 1 4 4 2 3 3 2 1 2 2 2 3 3 4 2 2 4 2 5 4 12 . 2 4 Penetration Max 3 | . . . . . . . . . . . 1 1 . . . . . . . . . 1 . . 2 3 . . . Secondary Targets 58 | . 1 1 3 1 . . 1 2 1 3 2 . . 6 . 8 . 6 4 7 1 . 1 4 5 1 . . . Max Gunslinging Chain 1 | . 1 1 1 1 . . 1 1 1 1 1 . . 1 . 1 . 1 1 1 1 . 1 1 1 1 . . . Shots Hit Robots 2299 | 24 60 29 102 9 . 21 57 94 76 99 142 59 1 78 27 162 26 125 108 206 52 55 48 100 182 256 3 22 76 Core Hits 1910 | 13 22 15 43 7 . 14 23 58 37 55 86 12 2 42 9 61 10 57 56 66 21 30 21 52 193 829 3 12 61 Critical Kills 136 | . . 1 3 . . . . . 1 . 2 6 . 1 . . . . . . . 2 . . 6 109 . 2 3 Critical Parts Destroyed 157 | . . 1 . . . 1 . . . . 7 2 . . . 1 . . . . . . . . 9 136 . . . Critical Strikes 405 | . . 2 3 . . 1 . . 1 . 9 17 . 5 2 13 . 11 9 22 6 3 1 10 29 256 . 2 3 Burn 100 | . . . . . . . . . . . . 3 . 2 2 12 . 11 9 22 6 1 1 10 14 7 . . . Meltdown 4 | . . . . . . . . . . . . . . . . . . . . . . . . . . 1 . . 3 Destroy 301 | . . 2 3 . . 1 . . 1 . 9 14 . 3 . 1 . . . . . 2 . . 15 248 . 2 . Melee Attacks 97 | . . . . . . . . 20 1 19 . 2 . 10 . 10 2 . . . . . . . . . . 23 10 Impact 51 | . . . . . . . . 16 1 19 . 2 . 10 . 3 . . . . . . . . . . . . . Slashing 33 | . . . . . . . . . . . . . . . . . . . . . . . . . . . . 23 10 Piercing 9 | . . . . . . . . . . . . . . . . 7 2 . . . . . . . . . . . . Sneak Attacks 8 | . . . . . . . . 4 . . . 2 . . . 1 1 . . . . . . . . . . . . Combat Hostiles . | . . . . . . . . . . . . . . . . . . . . . . . . . . . . . . Follow-up Attacks . | . . . . . . . . . . . . . . . . . . . . . . . . . . . . . . Damage Inflicted 71283 | 247 924 484 1747 161 . 749 865 2440 1196 3168 3263 665 45 1945 526 4131 678 3533 2789 3669 1371 1560 1036 3452 12235 11194 106 873 6231 Guns 38878 | 247 734 479 1563 150 . 322 861 1398 1185 1630 2185 552 45 1555 517 3192 576 2893 2547 3649 1371 1560 1023 2383 3633 2573 55 . . Cannons 9242 | . . . . . . . . . . . . . . . . 419 . 234 78 . . . . . 471 4627 51 534 2828 Explosions 22165 | . 187 . 163 . . 388 . 1042 . 1538 995 . . 390 . 438 . 395 142 . . . . 1069 8110 3978 . . 3330 Melee 594 | . . . . . . . . . . . . 84 . . . 82 102 . . . . . . . . . . 326 . Ramming 404 | . 3 5 21 11 . 39 4 . 11 . 83 29 . . 9 . . 11 22 20 . . 13 . 21 16 . 13 73 Kinetic 15513 | 247 734 479 1563 150 . 322 861 1260 1185 1630 2162 305 . 40 . 47 . 30 . . . 1218 . . 122 3099 55 4 . Thermal 31933 | . . . . . . . . . . . 23 247 45 1515 517 3564 576 3097 2625 3649 1371 342 1023 2413 3973 4570 . 217 2166 Explosive 16336 | . 187 . 163 . . 388 . 1042 . 1538 995 . . 390 . 438 . 395 142 . . . . 1039 6225 1406 . . 1988 Electromagnetic 6503 | . . . . . . . . 138 . . . . . . . . . . . . . . . . 1894 2103 51 313 2004 Impact 166 | . . . . . . . . . . . . 84 . . . 82 . . . . . . . . . . . . . Slashing 326 | . . . . . . . . . . . . . . . . . . . . . . . . . . . . 326 . Piercing 102 | . . . . . . . . . . . . . . . . . 102 . . . . . . . . . . . . Highest Corruption 30 | . 2 2 . . . . . . . 4 . . . . . 4 . 12 4 4 8 13 2 5 14 13 8 13 30 Average Corruption 6 | . 2 2 . . . . . . . 3 . . . . . 3 . 2 3 4 5 5 1 3 7 8 8 11 26 Corruption Purged 25 | . . . . . . . . . . . . . . . . . . . . . . 20 . . . 5 . . . Corruption Blocked . | . . . . . . . . . . . . . . . . . . . . . . . . . . . . . . Effects 521 | . 11 10 . . . . . . . 23 . . . . . 6 . 26 8 54 19 21 4 21 78 125 7 19 89 Message Errors 127 | . 3 6 . . . . . . . 5 . . . . . 1 . 6 1 10 5 1 . 3 24 37 2 3 20 Matter Fused 115 | . 3 3 . . . . . . . 5 . . . . . 2 . 6 2 9 6 4 . 4 17 31 . 5 18 Heat Flow Errors 63 | . 4 . . . . . . . . 1 . . . . . 1 . 3 1 9 1 7 1 . 8 10 2 6 9 Energy Discharges 55 | . . . . . . . . . . 2 . . . . . 1 . 2 2 6 1 3 . 7 8 9 1 2 11 Parts Rejected 6 | . . . . . . . . . . . . . . . . . . . . 3 . . . . . 1 . . 2 Parts Fused 6 | . . . . . . . . . . . . . . . . . . 1 . . . 1 . . 2 1 . 1 . Data Loss (minor) 59 | . 1 . . . . . . . . 5 . . . . . . . 4 . 6 5 4 2 3 5 15 . 2 7 Data Loss (major) 24 | . . . . . . . . . . . . . . . . . . 4 . 4 . . 1 1 4 6 1 . 3 Misfires 20 | . . 1 . . . . . . . 3 . . . . . 1 . . 1 4 . . . 2 2 4 1 . 1 Alerts 11 | . . . . . . . . . . 1 . . . . . . . . . 1 . . . . 4 4 . . 1 Misdirections 6 | . . . . . . . . . . . . . . . . . . . . . . . . . . 1 . . 5 Weapon Failures 29 | . . . . . . . . . . 1 . . . . . . . . 1 2 1 1 . 1 4 6 . . 12 Overload Shots . | . . . . . . . . . . . . . . . . . . . . . . . . . . . . . . Overflow Damage 880 | . . . . . . 39 . 9 . 3 7 27 . 11 . 2 . 9 7 . . . . . 375 129 . 38 224 Projectiles 116 | . . . . . . . . . . . . . . . . 2 . . . . . . . . . 50 . . 64 Explosions 678 | . . . . . . 25 . 9 . 3 7 . . 11 . . . 9 . . . . . . 375 79 . . 160 Melee 86 | . . . . . . 14 . . . . . 27 . . . . . . 7 . . . . . . . . 38 . Knockbacks 90 | . . . . 1 . . . . . . . 1 . . . . . . . . . . . . 4 83 . . 1 Impact 3 | . . . . 1 . . . . . . . 1 . . . . . . . . . . . . . . . . 1 Kinetic 79 | . . . . . . . . . . . . . . . . . . . . . . . . . 4 75 . . . Secondary 8 | . . . . . . . . . . . . . . . . . . . . . . . . . . 8 . . . Self-Inflicted Damage 1276 | . . . . . . 8 . 12 . 66 58 . . . . 60 . 31 . . . . . 133 395 408 . . 105 Shots 50 | . . . . . . 1 . 1 . 3 2 . . . . 1 . 1 . . . . . 2 14 22 . . 3 Rammed 27 | . 1 1 1 1 . 3 1 . 2 . 5 1 . 1 1 . . 2 2 2 . . 1 . 2 . . . . Targets Rammed 35 | . 1 1 2 1 . 3 1 . 2 . 6 1 . 1 1 . . 2 2 2 . . 1 . 2 2 . 1 3 Kicked 6 | . . . . . . . . . . . . . . . . . . . . . . . . . . 2 . 1 3 Crushed 2 | . . . 1 . . . . . . . 1 . . . . . . . . . . . . . . . . . . Highest Temperature 349 | . 178 12 59 16 . 71 116 183 141 120 200 177 33 126 8 190 92 149 215 236 132 229 187 349 303 305 74 162 238 Average Temperature 51 | . 34 5 10 7 . 38 38 44 36 35 72 102 22 50 8 54 54 67 106 89 79 99 68 131 94 51 54 64 80 Received Heat Transfer 4410 | . 270 . 228 . . 90 81 234 135 344 524 . . 182 141 218 331 179 88 225 . 4 39 43 338 429 63 43 181 Thermoelectric Energy+ 23 | . . . . . . . . . . . . . . . . . . . . . . . . . . . . . 23 Siege Activations 27 | . . . . . . . . . . . . . . 2 1 6 . . 2 3 . . . 5 8 . . . . Total Turns 398 | . . . . . . . . . . . . . . 14 4 101 . . 69 67 . . . 33 110 . . . . Longest Duration 47 | . . . . . . . . . . . . . . 9 4 40 . . 47 43 . . . 11 31 . . . . Martial Activations . | . . . . . . . . . . . . . . . . . . . . . . . . . . . . . . Shielding Activations . | . . . . . . . . . . . . . . . . . . . . . . . . . . . . . . Robots Disrupted 1 | . . . . . . . . . . . . . . . . . . . . . . . . . . . . . 1 Combat Hostiles 1 | . . . . . . . . . . . . . . . . . . . . . . . . . . . . . 1 Robots Corrupted 27 | . . . . . . . . 1 . . . 1 . . . . . . . . . . . . 4 10 . 2 9 Combat Hostiles 24 | . . . . . . . . 1 . . . . . . . . . . . . . . . . 4 10 . 2 7 Parts Fried 59 | . . . . . . . . 4 . . . 3 . . . 3 . . . . 1 . . . 12 22 . 1 13 Impact Corruptions 3 | . . . . . . 1 . . . . . 1 . . . . . . 1 . . . . . . . . . . Robots Melted 29 | . . . . . . . . . . . . . . . . 1 1 3 2 5 2 . 1 3 5 3 . . 3 Combat Hostiles 28 | . . . . . . . . . . . . . . . . 1 1 3 2 5 2 . 1 3 5 2 . . 3 Parts Melted 226 | . . . 1 . . . . . . . . . . 9 . 13 7 22 22 40 6 1 8 19 41 27 . . 10 Heat Transferred 64605 | . . . . . . . . . . . 50 666 74 2396 999 6885 1200 7038 6174 9800 2846 800 2250 5710 8977 6864 . 148 1728 Parts Sabotaged 2 | . . . . . . . . . . . . . . . . . . . . . . . . . . 2 . . . Parts Stolen . | . . . . . . . . . . . . . . . . . . . . . . . . . . . . . . Parts Stripped . | . . . . . . . . . . . . . . . . . . . . . . . . . . . . . . Power Chain Reactions 10 | . . . . . . . . . . . . . . . . . . . . . . . . 1 4 3 . . 2 Alert | -11 -10 -10 -9 -9 -9 -8 -8 -8 -8 -8 -7 -7 -7 -7 -6 -6 -5 -5 -4 -4 -4 -4 -4 -3 -3 -2 -2 -2 -2 ------- Run | Yrd Mat Min Mat Min Exi Min Mat Gar Mat Gar Fac Was Fac Gar Fac Gar Fac Gar Fac Ext Cet Arc Hub Res Tes Res Qua Gar Sec Maximum Alert Level 5 | . . . 1 . . . . 3 2 3 3 1 1 4 2 3 2 5 3 2 1 1 . 1 5 5 5 5 5 Low Security (%) 39 | 100 100 100 99 100 . 100 100 22 . 14 . 86 98 3 . . . 2 . 14 . 88 100 86 29 . . . . Level 1 16 | . . . . . . . . 15 87 12 2 13 1 19 4 22 49 12 . 58 100 11 . 13 6 . . . . Level 2 14 | . . . . . . . . 32 12 27 81 . . 25 95 36 50 10 31 26 . . . . . . . . . Level 3 12 | . . . . . . . . 30 . 45 15 . . 51 . 41 . 34 68 . . . . . 23 2 . . . Level 4 6 | . . . . . . . . . . . . . . . . . . 35 . . . . . . 21 24 . . 40 Level 5 4 | . . . . . . . . . . . . . . . . . . 5 . . . . . . 18 15 100 100 14 High Security 6 | . . . . . . . . . . . . . . . . . . . . . . . . . . 56 . . 44 Max Security . | . . . . . . . . . . . . . . . . . . . . . . . . . . . . . . Sterilizations 1 | . . . . . . . . . . . . . . . . . . . . . . . . . . 1 . . . Peak Influence 4816 | 10 108 91 203 110 . 102 70 993 483 1056 925 317 208 1166 611 992 520 1646 916 540 385 268 132 284 1798 4816 2709 2089 2218 Initial 2709 | . . 40 . 58 . . 4 35 483 163 554 317 . 74 611 258 520 171 863 441 280 89 . . 146 1011 2709 1769 1174 Average 658 | 1 11 27 63 14 . 28 15 499 325 634 558 60 107 668 499 600 397 941 746 325 306 128 60 92 834 3000 2412 1987 1583 Influence Increases 22683 | 35 303 243 1038 136 . 272 296 1038 472 933 862 . 338 1362 294 874 149 1605 479 1069 325 370 530 712 2502 4570 70 360 1446 Destroy 0b10 Robot/C 12440 | . 140 160 600 80 . 220 180 560 280 520 500 . 120 640 160 480 60 800 280 580 140 80 160 420 1380 3040 20 200 640 Destroy 0b10 Robot/NC 710 | 35 20 5 70 10 . . 10 5 30 5 55 . 10 10 5 5 10 10 65 20 10 45 15 20 85 125 5 . 25 Destroy Leader 1722 | . 36 30 180 10 . 30 44 20 102 40 122 . 24 40 32 30 30 30 62 46 . . 54 94 144 418 . . 104 Allied During Kill 1444 | . . 48 55 . . . . . . . . . 154 264 44 36 . 76 16 296 150 121 180 . . . . 4 . Successful Hack 649 | . 30 . 17 6 . . 61 12 10 28 8 . . 14 37 30 28 35 29 70 . . 32 66 59 36 . 7 34 Select Force Hacks 180 | . 60 . 60 . . . . . 30 . . . 30 . . . . . . . . . . . . . . . . Disable Machine 960 | . . . 45 . . . . 30 . 45 60 . . 15 15 15 . . 15 45 15 90 15 . 270 30 45 . 210 Anti-Garrison Action 1500 | . . . . . . . . 350 . 200 . . . 250 . 200 . 450 . . . . . . . . . 50 . Destroy Structure 2418 | . 17 . 11 . . 22 1 31 5 95 57 . . 99 1 78 6 129 12 12 10 34 74 112 474 786 . 69 283 Partial Spotted 15 | . . . . . . . . . . . 15 . . . . . . . . . . . . . . . . . . Lose Combat Pursuer 645 | . . . . 30 . . . 30 15 . 45 . . 30 . . 15 75 . . . . . . 90 135 . 30 150 Influence Decreases 20465 | 35 199 347 887 287 . 260 253 100 1214 128 1012 906 232 302 1091 251 896 204 1223 1471 602 593 530 452 964 1552 2527 630 1317 Entered New Map 9229 | . . 64 . 93 . . 8 20 510 88 502 589 . 32 555 111 472 74 783 461 220 134 . . 114 787 2107 590 915 Time Decay 8577 | 35 199 283 672 194 . 260 235 . 644 . 510 317 192 . 356 . 374 . 410 660 342 439 366 412 630 565 120 . 362 Lost Part 560 | . . . . . . . . 20 20 40 . . . 10 10 70 40 30 20 . . . . . 60 200 . . 40 Lost Ally 1199 | . . . 65 . . . 10 60 40 . . . 40 260 20 70 10 100 10 200 40 20 164 40 10 . . 40 . Purge Threat 900 | . . . 150 . . . . . . . . . . . 150 . . . . 150 . . . . 150 . 300 . . Squads Dispatched 120 | . 2 . 2 . . . 1 . 4 . 8 . 2 . 6 . 2 . 3 1 . . 4 3 14 38 2 . 28 Investigation 16 | . 2 . 2 . . . 1 . 3 . . . 1 . 2 . . . 1 1 . . . 1 2 . . . . Extermination 14 | . . . . . . . . . . . 1 . . . 1 . 1 . 1 . . . 1 . 4 4 . . 1 Reinforcement 22 | . . . . . . . . . 1 . 3 . 1 . 3 . 1 . 1 . . . 3 2 4 2 . . 1 Assault 59 | . . . . . . . . . . . 1 . . . . . . . . . . . . . 4 29 2 . 23 Garrison 9 | . . . . . . . . . . . 3 . . . . . . . . . . . . . . 3 . . 3 Intercept . | . . . . . . . . . . . . . . . . . . . . . . . . . . . . . . Searches Triggered . | . . . . . . . . . . . . . . . . . . . . . . . . . . . . . . Unchained Authorized 1 | . . . . . . . . . . . . . . . . . . . . . . . . . . . 1 . . Construction Impeded 5 | . . . . . . . . . . . 1 . . . . . . . . . . . . . 2 2 . . . Haulers Reinforced 5 | . . . . . . . . . . . 1 . . . 2 . . . 1 . . . . 1 . . . . . Active Scanning Responses . | . . . . . . . . . . . . . . . . . . . . . . . . . . . . . . Cargo Convoy Interrupts . | . . . . . . . . . . . . . . . . . . . . . . . . . . . . . . Alert ID Control Effect 12 | . . . . . . . . . . . . . . . . . . 2 3 . 1 . 6 . . . . . . Stealth | -11 -10 -10 -9 -9 -9 -8 -8 -8 -8 -8 -7 -7 -7 -7 -6 -6 -5 -5 -4 -4 -4 -4 -4 -3 -3 -2 -2 -2 -2 --------- Run | Yrd Mat Min Mat Min Exi Min Mat Gar Mat Gar Fac Was Fac Gar Fac Gar Fac Gar Fac Ext Cet Arc Hub Res Tes Res Qua Gar Sec Distress Signals 42 | . . . 4 . . . . . 2 . 4 . . . . . . 1 6 2 3 . 2 10 3 2 . . 3 Communications Jammed 2 | . . . . . . . . . . . . . . . 2 . . . . . . . . . . . . . . Distress Signals 2 | . . . . . . . . . . . . . . . 2 . . . . . . . . . . . . . . Times Spotted 882 | . 13 8 40 6 . 10 11 26 20 24 33 6 5 29 10 23 7 41 33 38 11 33 17 44 86 201 3 14 90 Peak Tracking Total 22 | . 3 3 4 4 . 4 3 3 3 4 6 3 2 6 2 3 3 5 8 8 5 2 4 6 13 22 1 5 11 Tactical Retreats 32 | . 1 . . 1 . . . 1 1 . 2 . . 1 . . 1 4 . . . . . . 6 6 . 1 7 Traps | -11 -10 -10 -9 -9 -9 -8 -8 -8 -8 -8 -7 -7 -7 -7 -6 -6 -5 -5 -4 -4 -4 -4 -4 -3 -3 -2 -2 -2 -2 ------- Run | Yrd Mat Min Mat Min Exi Min Mat Gar Mat Gar Fac Was Fac Gar Fac Gar Fac Gar Fac Ext Cet Arc Hub Res Tes Res Qua Gar Sec Traps Triggered 47 | . 2 . . . . . . 7 1 11 1 . . 9 . 4 . 5 . . . . . 1 . 3 . 1 2 Indirectly . | . . . . . . . . . . . . . . . . . . . . . . . . . . . . . . Trap Hack Attempts 8 | . . . . . . . . 8 . . . . . . . . . . . . . . . . . . . . . Triggered . | . . . . . . . . . . . . . . . . . . . . . . . . . . . . . . Disarmed 2 | . . . . . . . . 2 . . . . . . . . . . . . . . . . . . . . . Reprogrammed . | . . . . . . . . . . . . . . . . . . . . . . . . . . . . . . Reused . | . . . . . . . . . . . . . . . . . . . . . . . . . . . . . . Traps Extracted . | . . . . . . . . . . . . . . . . . . . . . . . . . . . . . . Installed . | . . . . . . . . . . . . . . . . . . . . . . . . . . . . . . Triggered . | . . . . . . . . . . . . . . . . . . . . . . . . . . . . . . Machines | -11 -10 -10 -9 -9 -9 -8 -8 -8 -8 -8 -7 -7 -7 -7 -6 -6 -5 -5 -4 -4 -4 -4 -4 -3 -3 -2 -2 -2 -2 ---------- Run | Yrd Mat Min Mat Min Exi Min Mat Gar Mat Gar Fac Was Fac Gar Fac Gar Fac Gar Fac Ext Cet Arc Hub Res Tes Res Qua Gar Sec Machines Disabled 82 | . . . 3 . . . . 3 . 5 4 . . 2 1 4 . 1 1 3 1 6 1 . 19 6 3 . 19 Max in Single Turn 3 | . . . 1 . . . . 1 . 1 2 . . 1 . 1 . 1 1 1 1 1 1 . 3 1 1 . 2 Garrison Access 5 | . . . . . . . . . . . . . . . 1 . . . 1 . . . . 1 . 2 . . . Garrison Relay 4 | . . . . . . . . . . 2 . . . 1 . . . 1 . . . . . . . . . . . Phase Generator 1 | . . . . . . . . 1 . . . . . . . . . . . . . . . . . . . . . Network Hub 1 | . . . . . . . . . . . . . . . . . . . . . . . 1 . . . . . . Machines Repaired . | . . . . . . . . . . . . . . . . . . . . . . . . . . . . . . Machines Dismantled 10 | . . . . . . . . 1 . 1 . . . . . . . . . 3 1 . 1 . . 3 . . . Machines Sabotaged . | . . . . . . . . . . . . . . . . . . . . . . . . . . . . . . Overloaded Fab Kills . | . . . . . . . . . . . . . . . . . . . . . . . . . . . . . . Hacking | -11 -10 -10 -9 -9 -9 -8 -8 -8 -8 -8 -7 -7 -7 -7 -6 -6 -5 -5 -4 -4 -4 -4 -4 -3 -3 -2 -2 -2 -2 --------- Run | Yrd Mat Min Mat Min Exi Min Mat Gar Mat Gar Fac Was Fac Gar Fac Gar Fac Gar Fac Ext Cet Arc Hub Res Tes Res Qua Gar Sec Machines Accessed 130 | . 10 . 16 2 . . 4 3 9 3 7 . 2 2 4 3 2 4 6 15 1 . 8 8 9 6 2 1 3 Terminals 81 | . 7 . 12 1 . . 2 3 4 3 2 . . 2 1 3 1 4 2 13 1 . 7 3 4 2 1 1 2 Fabricators 6 | . . . . . . . . . . . 2 . . . . . . . 2 . . . . 1 1 . . . . Repair Stations 9 | . 1 . 1 . . . . . 1 . . . . . 1 . . . . . . . . 2 1 2 . . . Recycling Units 11 | . 2 . 2 . . . . . 1 . 1 . 1 . . . . . 1 2 . . . . . 1 . . . Scanalyzers 11 | . . . 1 . . . 1 . 2 . 1 . . . . . . . . . . . . 1 3 1 . . 1 Garrison Access 11 | . . . . . . . 1 . 1 . 1 . 1 . 2 . 1 . 1 . . . 1 1 . . 1 . . Total Hacks 343 | . 29 . 47 5 . . 13 6 20 5 17 . 3 5 9 6 6 7 20 36 3 . 28 22 23 14 9 2 8 Successful 163 | . 18 . 33 2 . . 11 3 8 2 6 . 2 2 5 2 3 3 11 18 . . 13 5 7 2 3 1 3 Failed 178 | . 11 . 13 3 . . 2 3 12 3 11 . 1 3 4 4 3 4 9 18 3 . 15 17 16 12 6 1 4 Catastrophic 47 | . 2 . . . . . . . 5 1 2 . . 1 1 1 2 2 2 2 1 . 2 7 6 4 2 1 3 Database Lockouts 2 | . . . 1 . . . . . . . . . . . . . . . . . . . . . . . . . 1 Manual 156 | . 22 . 27 5 . . 2 1 9 2 8 . 1 1 4 5 5 . 7 13 1 . 16 7 12 4 2 . 2 Terminals 217 | . 23 . 35 4 . . 6 6 7 5 4 . . 5 2 6 4 7 7 30 3 . 26 10 10 3 6 2 6 Fabricators 21 | . . . . . . . . . . . 5 . . . . . . . 10 . . . . 2 4 . . . . Repair Stations 34 | . 4 . 6 . . . . . 2 . . . . . 3 . . . . . . . . 7 4 8 . . . Recycling Units 18 | . 2 . 2 . . . . . 1 . 2 . 2 . . . . . 2 6 . . . . . 1 . . . Scanalyzers 25 | . . . 4 . . . 4 . 4 . 2 . . . . . . . . . . . . 2 5 2 . . 2 Garrison Access 27 | . . . . . . . 3 . 6 . 4 . 1 . 4 . 2 . 1 . . . 2 1 . . 3 . . Terminal Hacks 58 | . 3 . 9 2 . . 4 3 . 1 1 . . 2 . 2 1 3 3 10 . . 9 . 1 . 2 1 1 Record 1 | . . . . . . . . . . . . . . . . . . . . 1 . . . . . . . . . Part Schematic 4 | . 1 . . 1 . . . . . . . . . . . . . . . 2 . . . . . . . . . Robot Schematic 1 | . 1 . . . . . . . . . . . . . . . . . . . . . . . . . . . . Robot Analysis 5 | . 1 . 3 . . . 1 . . . . . . . . . . . . . . . . . . . . . . Prototype ID Bank 7 | . . . 2 . . . 2 . . . . . . . . . . . . 1 . . 2 . . . . . . Open Door 11 | . . . . 1 . . . 1 . . . . . . . . . 1 1 6 . . . . . . . 1 . Level Access Points 1 | . . . . . . . . . . . . . . . . . 1 . . . . . . . . . . . . Branch Access Points 1 | . . . . . . . . . . . . . . . . . . . 1 . . . . . . . . . . Emergency Access Points 3 | . . . . . . . . 1 . . . . . 1 . . . 1 . . . . . . . . . . . Terminal Index 2 | . . . . . . . . . . . . . . . . . . . . . . . 1 . . . . . 1 Garrison Index 1 | . . . . . . . . . . . . . . . . . . . 1 . . . . . . . . . . Alert Level 1 | . . . 1 . . . . . . . . . . . . . . . . . . . . . . . . . . Unreport Threat 4 | . . . 1 . . . . . . . . . . . . . . . . . . . . . 1 . 2 . . Locate Traps 3 | . . . . . . . . . . . 1 . . . . . . . . . . . 2 . . . . . . Hauler Manifests 3 | . . . 1 . . . 1 . . . . . . . . . . . . . . . 1 . . . . . . Zone Layout 4 | . . . 1 . . . . . . . . . . . . . . . . . . . 3 . . . . . . Garrison Registry 4 | . . . . . . . . 1 . 1 . . . . . 1 . 1 . . . . . . . . . . . Patrol Navigation 2 | . . . . . . . . . . . . . . 1 . 1 . . . . . . . . . . . . . Fabricator Hacks 8 | . . . . . . . . . . . 1 . . . . . . . 5 . . . . . 2 . . . . Network Status 2 | . . . . . . . . . . . 1 . . . . . . . 1 . . . . . . . . . . Load Schematic 3 | . . . . . . . . . . . . . . . . . . . 2 . . . . . 1 . . . . Build 3 | . . . . . . . . . . . . . . . . . . . 2 . . . . . 1 . . . . Repair Station Hacks 14 | . 4 . 6 . . . . . . . . . . . . . . . . . . . . 1 1 2 . . . Scan Component 9 | . 2 . 3 . . . . . . . . . . . . . . . . . . . . 1 1 2 . . . Repair 5 | . 2 . 3 . . . . . . . . . . . . . . . . . . . . . . . . . . Recycling Unit Hacks 1 | . . . . . . . . . . . . . . . . . . . . 1 . . . . . . . . . Retrieve Components 1 | . . . . . . . . . . . . . . . . . . . . 1 . . . . . . . . . Scanalyzer 14 | . . . 3 . . . 4 . 4 . 1 . . . . . . . . . . . . 1 . . . . 1 Insert Component 1 | . . . . . . . . . 1 . . . . . . . . . . . . . . . . . . . . Analyze 1 | . . . . . . . . . 1 . . . . . . . . . . . . . . . . . . . . Retrieve Study 12 | . . . 3 . . . 4 . 2 . 1 . . . . . . . . . . . . 1 . . . . 1 Garrison Access Hacks 11 | . . . . . . . 1 . 1 . 1 . 1 . 2 . 1 . 1 . . . 1 1 . . 1 . . Unlock Access 8 | . . . . . . . 1 . 1 . 1 . 1 . 1 . 1 . . . . . 1 . . . 1 . . Seal Access 3 | . . . . . . . . . . . . . . . 1 . . . 1 . . . . 1 . . . . . Unauthorized Hacks 57 | . 11 . 15 . . . 2 . 3 1 2 . 1 . 3 . 1 . 2 7 . . 3 2 3 . . . 1 Terminals 35 | . 9 . 13 . . . . . . 1 . . . . . . . . . 5 . . 3 1 2 . . . 1 Track 1 | . . . . . . . . . . . . . . . . . . . . . . . 1 . . . . . . Assimilate 2 | . 1 . 1 . . . . . . . . . . . . . . . . . . . . . . . . . . Botnet 6 | . 1 . 1 . . . . . . 1 . . . . . . . . . . . . 1 . 1 . . . 1 Operators 5 | . 2 . 1 . . . . . . . . . . . . . . . . . . . 1 1 . . . . . Skim 21 | . 5 . 10 . . . . . . . . . . . . . . . . 5 . . . . 1 . . . . Fabricators 3 | . . . . . . . . . . . 1 . . . . . . . 2 . . . . . . . . . . Prioritize 1 | . . . . . . . . . . . . . . . . . . . 1 . . . . . . . . . . Haulers 2 | . . . . . . . . . . . 1 . . . . . . . 1 . . . . . . . . . . Repair Stations 2 | . . . . . . . . . . . . . . . 1 . . . . . . . . 1 . . . . . Mechanics 2 | . . . . . . . . . . . . . . . 1 . . . . . . . . 1 . . . . . Recycling Units 8 | . 2 . 2 . . . . . 1 . . . 1 . . . . . . 2 . . . . . . . . . Reject 2 | . . . . . . . . . . . . . . . . . . . . 2 . . . . . . . . . Tunnel 6 | . 2 . 2 . . . . . 1 . . . 1 . . . . . . . . . . . . . . . . Scanalyzers 1 | . . . . . . . . . . . . . . . . . . . . . . . . . 1 . . . . Researchers 1 | . . . . . . . . . . . . . . . . . . . . . . . . . 1 . . . . Garrison Access 8 | . . . . . . . 2 . 2 . 1 . . . 2 . 1 . . . . . . . . . . . . Reprogram 3 | . . . . . . . 1 . 1 . . . . . 1 . . . . . . . . . . . . . . Intercept 5 | . . . . . . . 1 . 1 . 1 . . . 1 . 1 . . . . . . . . . . . . Data Cores Recovered 3 | . . . 1 . . . . . . . 1 . . . . . . . . 1 . . . . . . . . . Used 1 | . . . 1 . . . . . . . . . . . . . . . . . . . . . . . . . . Hacking Detections 107 | . 7 . 8 1 . . 4 3 6 3 7 . . 2 3 3 2 4 5 13 1 . 7 7 9 6 2 1 3 Full Trace Events 9 | . . . . . . . 1 . . . . . . . 1 . . 2 1 1 . . . . 2 . . 1 . Feedback Events 2 | . . . . . . . . . . . . . . . . . . 1 1 . . . . . . . . . . Corruption 2 | . . . . . . . . . . . . . . . . . . 1 1 . . . . . . . . . . Feedback Blocked . | . . . . . . . . . . . . . . . . . . . . . . . . . . . . . . Robot Schematics Acquired 7 | . 1 . . . . . . . . . . . . . . . . . . . . . . . 2 . 1 . 3 Robots Built 3 | . . . . . . . . . . . . . . . . . . . 2 . . . . . 1 . . . . Authchips 2 | . . . . . . . . . . . . . . . . . . . 2 . . . . . . . . . . Time 107 | . . . . . . . . . . . . . . . . . . . 80 . . . . . 27 . . . . Total Robot Build Rating 3 | . . . . . . . . . . . . . . . . . . . 2 . . . . . 1 . . . . Part Schematics Acquired 27 | . 1 . . 1 . . . . 1 . . . . . . . . . . 2 . . . . 14 . 3 . 5 Parts Built . | . . . . . . . . . . . . . . . . . . . . . . . . . . . . . . Authchips . | . . . . . . . . . . . . . . . . . . . . . . . . . . . . . . Time . | . . . . . . . . . . . . . . . . . . . . . . . . . . . . . . Total Part Build Rating . | . . . . . . . . . . . . . . . . . . . . . . . . . . . . . . Part Studies Acquired 12 | . . . 3 . . . 4 . 2 . 1 . . . . . . . . . . . . 1 . . . . 1 Parts Repaired 5 | . 2 . 3 . . . . . . . . . . . . . . . . . . . . . . . . . . Time 148 | . 52 . 96 . . . . . . . . . . . . . . . . . . . . . . . . . . Parts Recycled . | . . . . . . . . . . . . . . . . . . . . . . . . . . . . . . Recycled Matter . | . . . . . . . . . . . . . . . . . . . . . . . . . . . . . . Retrieved Matter . | . . . . . . . . . . . . . . . . . . . . . . . . . . . . . . Retrieved Components 10 | . . . . . . . . . . . . . . . . . . . . 10 . . . . . . . . . Parts Scanalyzed 1 | . . . . . . . . . 1 . . . . . . . . . . . . . . . . . . . . Part Schematics Acquired 1 | . . . . . . . . . 1 . . . . . . . . . . . . . . . . . . . . Parts Damaged 1 | . . . . . . . . . 1 . . . . . . . . . . . . . . . . . . . . Bothacking | -11 -10 -10 -9 -9 -9 -8 -8 -8 -8 -8 -7 -7 -7 -7 -6 -6 -5 -5 -4 -4 -4 -4 -4 -3 -3 -2 -2 -2 -2 ------------ Run | Yrd Mat Min Mat Min Exi Min Mat Gar Mat Gar Fac Was Fac Gar Fac Gar Fac Gar Fac Ext Cet Arc Hub Res Tes Res Qua Gar Sec Used RIF Installer 7 | . . . . . . . . 1 . 2 . . . 1 . 1 . 2 . . . . . . . . . . . Code Merge 1 | . . . . . . . . . . . . . . 1 . . . . . . . . . . . . . . . Zone Cloak 2 | . . . . . . . . . . 1 . . . . . 1 . . . . . . . . . . . . . Robot Detection 1 | . . . . . . . . . . 1 . . . . . . . . . . . . . . . . . . . Alert ID Control 1 | . . . . . . . . . . . . . . . . . . 1 . . . . . . . . . . . Autooverride 1 | . . . . . . . . . . . . . . . . . . 1 . . . . . . . . . . . Robots Hacked 57 | . . . . . . . . . . . . 6 . 2 2 1 1 4 12 8 2 . 3 5 7 . . . 4 Non-combat 24 | . . . . . . . . . . . . . . . 2 . 1 . 7 5 . . 3 3 3 . . . . Combat 33 | . . . . . . . . . . . . 6 . 2 . 1 . 4 5 3 2 . . 2 4 . . . 4 Autooverrided 8 | . . . . . . . . . . . . . . . . . . 2 2 . 2 . . 2 . . . . . Robot Hacks Applied 57 | . . . . . . . . . . . . 6 . 2 3 3 2 2 11 11 . . 3 3 7 . . . 4 parse_system 10 | . . . . . . . . . . . . . . 2 . 3 . . 1 3 . . . . 1 . . . . find_chute 2 | . . . . . . . . . . . . . . . . . . . 2 . . . . . . . . . . map_walls 1 | . . . . . . . . . . . . . . . . . . . 1 . . . . . . . . . . find_fabricator 1 | . . . . . . . . . . . . . . . . . 1 . . . . . . . . . . . . drop_inventory 14 | . . . . . . . . . . . . . . . . . 1 . 3 4 . . 3 2 1 . . . . find_recycling 1 | . . . . . . . . . . . . . . . . . . . 1 . . . . . . . . . . purge_threat 2 | . . . . . . . . . . . . . . . 1 . . . . 1 . . . . . . . . . block_reporting 1 | . . . . . . . . . . . . . . . . . . . . 1 . . . . . . . . . disable_scanner 8 | . . . . . . . . . . . . . . . . . . . . . . . . . 4 . . . 4 ignore_targets 6 | . . . . . . . . . . . . 6 . . . . . . . . . . . . . . . . . amplify_resonance 1 | . . . . . . . . . . . . . . . . . . 1 . . . . . . . . . . . overwrite_iff 5 | . . . . . . . . . . . . . . . . . . 1 3 1 . . . . . . . . . formatsys_low 5 | . . . . . . . . . . . . . . . 2 . . . . 1 . . . 1 1 . . . . Relay Couplers Released 20 | . . . . . . . . . . 6 . . . 5 . 3 . 4 . . . . . . . 2 . . . Machine Destruction 17 | . . . . . . . . . . 6 . . . 5 . . . 4 . . . . . . . 2 . . . Programmers 3 | . . . . . . . . . . . . . . . . 3 . . . . . . . . . . . . . Attached 7 | . . . . . . . . . . . . 1 . . 1 1 . 2 . . . . . . . . . 1 1 Merged Code Value 61 | . . . . . . . . . . . . . . . . 15 . 46 . . . . . . . . . . . Fabnet Peak Effective % . | . . . . . . . . . . . . . . . . . . . . . . . . . . . . . . Robots Rewired 29 | . . . . . . . . 3 . . . . . 2 . 1 . 2 . 21 . . . . . . . . . Allies Hacked 4 | . . . . . . . . . . . . . . 2 . . . . . . . . . . 1 . . 1 . Hacks Repelled . | . . . . . . . . . . . . . . . . . . . . . . . . . . . . . . Allies | -11 -10 -10 -9 -9 -9 -8 -8 -8 -8 -8 -7 -7 -7 -7 -6 -6 -5 -5 -4 -4 -4 -4 -4 -3 -3 -2 -2 -2 -2 -------- Run | Yrd Mat Min Mat Min Exi Min Mat Gar Mat Gar Fac Was Fac Gar Fac Gar Fac Gar Fac Ext Cet Arc Hub Res Tes Res Qua Gar Sec Total Allies 102 | . 1 5 1 . . . . 3 2 . . 18 . 4 4 1 . 7 7 35 7 . . 3 2 . . 2 . Largest Group 27 | . 1 6 6 2 2 2 2 3 2 . . 18 16 13 6 5 1 4 2 24 27 20 15 1 1 . . 2 . Highest-Rated Group 1565 | . 10 96 96 20 20 20 20 90 32 . . 434 364 322 264 235 26 237 94 1189 1565 1111 883 119 23 . . 75 . Highest-Rated Ally 159 | . 10 31 31 10 10 10 10 39 16 . . 35 31 95 95 119 26 95 47 159 159 96 96 119 23 . . 46 . Total Orders 110 | . 7 . 11 2 . 4 8 19 . . . . . . 4 8 . . 2 27 5 5 . 1 7 . . . . STAY 54 | . 5 . 5 1 . 2 4 11 . . . . . . 2 3 . . . 12 3 4 . . 2 . . . . ROAM 2 | . . . 1 . . . . 1 . . . . . . . . . . . . . . . . . . . . . FOLLOW 37 | . 2 . 5 1 . 2 4 7 . . . . . . . 3 . . . 10 2 1 . . . . . . . AID 14 | . . . . . . . . . . . . . . . 2 2 . . 2 5 . . . 1 2 . . . . EXPLORE 2 | . . . . . . . . . . . . . . . . . . . . . . . . . 2 . . . . RETURN 1 | . . . . . . . . . . . . . . . . . . . . . . . . . 1 . . . . Ally Attacks 584 | . . 5 55 . . . . 14 9 . . . 41 96 27 25 . 28 16 94 54 16 92 8 . . . 4 . Total Damage 14133 | . . 65 482 . . . . 353 120 . . . 479 1574 1038 1022 . 1052 533 2896 1543 391 2367 149 . . . 69 . Kills 89 | . . 1 15 . . . . . 1 . . . 7 13 8 5 . 7 3 8 7 3 11 . . . . . . Allies Corrupted 5 | . . . . . . . . . . . . 1 . . . . . 1 . . . . 1 1 . . . 1 . Allies Melted 1 | . . . . . . . . . . . . . . . . . . . . 1 . . . . . . . . . Intel | -11 -10 -10 -9 -9 -9 -8 -8 -8 -8 -8 -7 -7 -7 -7 -6 -6 -5 -5 -4 -4 -4 -4 -4 -3 -3 -2 -2 -2 -2 ------- Run | Yrd Mat Min Mat Min Exi Min Mat Gar Mat Gar Fac Was Fac Gar Fac Gar Fac Gar Fac Ext Cet Arc Hub Res Tes Res Qua Gar Sec Active Infowar (turns) 36361 | 189 2086 851 3744 1296 970 1088 831 2159 2332 1631 19 1773 471 1080 803 702 875 1806 710 407 . . 968 1881 1538 3910 250 500 1491 Optics 6251 | . . . . . . . . . . . . . . . . . . . . . . . . . 100 3910 250 500 1491 Sensors 582 | . . . . . . . . . . . . . . . . . . . . . . . . . . 582 . . . Seismic 29445 | 189 2086 851 3744 1296 970 1088 831 2159 2332 1631 19 1772 471 1080 498 . . 1571 707 407 . . 968 1881 1449 1445 . . . Triangulation 5160 | . . . . . . . . . . . . 1 . . . 389 875 1623 3 . . . . . 268 2001 . . . Cloaking 184 | . . . . . . . . . . . . . . . . . . . . . . . . . . . . . 184 Jamming 1114 | . . . . . . . . . . . . . . . 801 313 . . . . . . . . . . . . . Robot Analysis Total 5 | . 1 . 3 . . . 1 . . . . . . . . . . . . . . . . . . . . . . Derelict Logs Recovered 4 | . . 2 . 2 . . . . . . . . . . . . . . . . . . . . . . . . . Drone Launches 2 | . . . . . . . . . . . . . . . . . . . . . . . . . 2 . . . . Drone Recoveries . | . . . . . . . . . . . . . . . . . . . . . . . . . . . . . . Exploration | -11 -10 -10 -9 -9 -9 -8 -8 -8 -8 -8 -7 -7 -7 -7 -6 -6 -5 -5 -4 -4 -4 -4 -4 -3 -3 -2 -2 -2 -2 ------------- Run | Yrd Mat Min Mat Min Exi Min Mat Gar Mat Gar Fac Was Fac Gar Fac Gar Fac Gar Fac Ext Cet Arc Hub Res Tes Res Qua Gar Sec Turns Passed 45343 | 223 2086 851 3747 1298 973 1096 831 2167 2332 1787 1388 1780 471 1806 803 2035 875 2216 983 2480 762 1150 968 1885 2199 3910 250 500 1491 Spaces Moved 20841 | 28 1006 473 1673 619 485 514 358 906 993 741 543 715 200 685 450 761 396 834 432 1224 370 381 494 1010 978 1995 184 305 1088 Core . | . . . . . . . . . . . . . . . . . . . . . . . . . . . . . . Treads 17230 | 28 1006 473 1673 619 485 514 358 906 993 741 543 715 200 685 450 761 396 834 432 1224 370 381 494 1010 939 . . . . Legs 3406 | . . . . . . . . . . . . . . . . . . . . . . . . . 39 1995 184 305 883 Wheels . | . . . . . . . . . . . . . . . . . . . . . . . . . . . . . . Hover . | . . . . . . . . . . . . . . . . . . . . . . . . . . . . . . Flight . | . . . . . . . . . . . . . . . . . . . . . . . . . . . . . . Fastest Speed 110 | 160 160 160 160 200 200 200 200 200 200 195 190 198 225 225 160 155 155 150 152 152 158 163 160 160 114 114 118 118 110 Average Speed 175 | 160 160 160 188 200 200 200 200 200 200 198 194 217 225 225 160 203 199 211 152 157 161 163 160 160 160 136 118 118 113 Slowest Speed 255 | 160 160 160 200 200 200 200 200 240 200 200 226 225 225 225 160 240 240 216 152 243 163 163 163 160 185 255 118 118 178 Overloaded Moves . | . . . . . . . . . . . . . . . . . . . . . . . . . . . . . . Propulsion Burnouts . | . . . . . . . . . . . . . . . . . . . . . . . . . . . . . . Robots Hopped . | . . . . . . . . . . . . . . . . . . . . . . . . . . . . . . Potential Cave-ins 7 | . . . . . . . . . . . . . . . . . . . . . . . 4 . . 3 . . . Cave-ins Triggered 1 | . . . . . . . . . . . . . . . . . . . . . . . . . . . . . 1 Teleports 40 | . . . . . . . . . . . . . . . . . . . . . . . . . . . . 1 39 Spacefolds 10 | . . . . . . . . . . . . . . . . . . . . . . . . . . . . . 10 Microwarps 12 | . . . . . . . . . . . . . . . . . . . . . . . . . . . . . 12 Exploration Rate (%) 61 | 3 99 98 95 99 91 99 19 95 54 83 14 97 6 93 10 69 10 85 10 96 74 98 50 23 83 52 20 27 79 Regions Visited 29 Branch Regions 11 Pre-discovered Areas 9 | . 3 1 3 . . . . . 1 . . . 1 . . . . . . . . . . . . . . . . Known Exits Taken 13 | . 1 1 1 . . 1 1 . 1 . . . 1 . 1 . 1 . 1 . . . . 1 1 . 1 . . Unknown Exits Taken 8 | 1 . . . 1 1 . . . . . . . . . . . . . . 1 1 1 1 . . 1 . . . Scrap Searched 4 | . . 2 . 1 . 1 . . . . . . . . . . . . . . . . . . . . . . . Spaces Dug 241 | . . . . . . . . 10 1 10 . . . 3 . 4 3 31 3 1 . . 13 4 16 85 . 11 46 Terrain Destroyed 1244 | . 20 . 9 . . 26 . 62 1 58 66 . . 16 . 45 3 33 4 1 . 21 14 63 291 323 . 15 173 Melee 45 | . . . . . . . . 10 1 10 . . . 3 . 4 1 . . . . . . . . . . 11 5 Projectile 122 | . . . . . . . . . . . . . . . . . 2 10 3 1 . 21 14 7 16 30 . 2 16 AOE 944 | . 20 . 9 . . 26 . 52 . 48 66 . . 12 . 41 . 23 1 . . . . 56 268 170 . . 152 Terrain Rammed . | . . . . . . . . . . . . . . . . . . . . . . . . . . . . . . Walls Destroyed . | . . . . . . . . . . . . . . . . . . . . . . . . . . . . . . Machines Disabled . | . . . . . . . . . . . . . . . . . . . . . . . . . . . . . . Actions | -11 -10 -10 -9 -9 -9 -8 -8 -8 -8 -8 -7 -7 -7 -7 -6 -6 -5 -5 -4 -4 -4 -4 -4 -3 -3 -2 -2 -2 -2 --------- Run | Yrd Mat Min Mat Min Exi Min Mat Gar Mat Gar Fac Was Fac Gar Fac Gar Fac Gar Fac Ext Cet Arc Hub Res Tes Res Qua Gar Sec Total 26941 | 177 1409 530 2170 661 488 558 445 1110 1280 919 730 879 220 836 505 1046 459 1104 631 1574 488 858 617 1191 1423 2821 210 380 1222 Wait 2757 | 129 327 24 332 22 2 22 16 51 221 31 37 32 20 37 20 85 4 93 87 109 58 388 53 66 113 336 1 6 35 Move 20629 | 27 1005 472 1672 618 484 513 357 905 992 740 543 714 199 684 449 760 395 833 431 1223 369 380 493 1009 977 1994 183 304 904 Hop . | . . . . . . . . . . . . . . . . . . . . . . . . . . . . . . Pick Up 248 | 2 13 3 25 2 . . 10 4 7 9 12 16 . 5 3 18 10 9 4 12 5 1 3 4 16 34 3 4 14 Fast Attach 172 | 1 1 . 9 . . . 3 2 2 . 4 8 . . 1 4 3 7 2 8 5 6 2 10 32 36 3 1 22 Attach 119 | . 3 . 5 . . . 3 2 2 4 3 1 . 1 4 10 1 4 6 1 . 1 . 2 15 32 . 2 17 Detach 61 | . . . 4 . . . 1 . . . 1 1 . . 2 4 1 1 . 1 1 . 1 1 14 18 . 1 9 Swap 558 | 3 8 2 19 4 2 5 9 33 6 31 32 11 . 22 5 38 14 32 28 38 6 . 16 24 71 38 6 9 46 Drop 372 | . 8 4 30 3 . 1 20 4 10 6 24 28 . 7 3 13 14 14 1 23 14 4 5 13 41 48 6 6 22 Fire 1745 | 15 43 24 72 11 . 14 25 60 37 60 68 65 1 58 17 96 15 101 70 133 22 78 40 62 142 246 8 22 140 Melee 97 | . . . . . . . . 20 1 19 . 2 . 10 . 10 2 . . . . . . . . . . 23 10 Ram . | . . . . . . . . . . . . . . . . . . . . . . . . . . . . . . Kick 6 | . . . . . . . . . . . . . . . . . . . . . . . . . . 2 . 1 3 Crush 29 | . 1 1 2 1 . 3 1 . 2 . 6 1 . 1 1 . . 2 2 2 . . 1 . 2 . . . . Escape Stasis 66 | . . . . . . . . 12 . 16 . . . 11 . 8 . 8 . . . . . . . 10 . 1 . Rewire . | . . . . . . . . . . . . . . . . . . . . . . . . . . . . . . Trap 8 | . . . . . . . . 8 . . . . . . . . . . . . . . . . . . . . . Miscellaneous 74 | . . . . . . . . 9 . 3 . . . . . . . . . 24 8 . 3 . . 27 . . . Route ------- -11/Scrapyard -10/Materials (discovered 5 exits: *Mat x3 / *Min / *Sub) -10/Mines (discovered 3 exits: *Mat x2 / Sub) -9/Materials (discovered 5 exits: *Mat x3 / *Min x2) -9/Mines (discovered 3 exits: *Mat x2 / *Exi) -9/Exiles (discovered 2 exits: [*Min x2]) -8/Mines (discovered 2 exits: *Mat x2) -8/Materials (discovered 4 exits: Fac x3 / Gar) -8/Garrison (discovered 3 exits: *Mat x3) -8/Materials (discovered 3 exits: *Fac x2 / Gar) -8/Garrison (discovered 3 exits: *Fac x3) -7/Factory (discovered 2 exits: [*Low] / Gar) -7/Waste -7/Factory (discovered 2 exits: *Fac / Gar) -7/Garrison (discovered 3 exits: *Fac x3) -6/Factory -6/Garrison (discovered 3 exits: *Fac x3) -5/Factory (discovered 5 exits: *Fac x4 / Gar) -5/Garrison (discovered 3 exits: *Fac x3) -4/Factory (discovered 4 exits: Upp x2 / *Ext x2) -4/Extension (discovered 2 exits: *Res / *Cet) -4/Cetus (discovered 2 exits: *Res / [*Arc]) -4/Archives (discovered 3 exits: *Res / *Hub x2) -4/Hub_04(d) (discovered 3 exits: *Res x2 / Gar) -3/Research (discovered 4 exits: *Res x2 / Arm / *Tes) -3/Testing -2/Research -2/Quarantine -2/Garrison -2/Section 7 History --------- Turn | Location | Event 28 | -11/Scrapyard | Discovered new exit (range 2) 224 | -11/Scrapyard | Entered Materials 317 | -10/Materials | Build established: Mutant 519 | -10/Materials | Discovered new exit (range 7) 599 | -10/Materials | Discovered new exit (range 13) 857 | -10/Materials | Discovered new exit (range 13) 924 | -10/Materials | Derelicts attacked the area 1294 | -10/Materials | Repaired Lgt. Treads? 1339 | -10/Materials | Repaired Lgt. Treads 1353 | -10/Materials | Discovered new exit (range 5) 1538 | -10/Materials | Discovered new exit (range 5) 1706 | -10/Materials | Identified exit to Materials 1706 | -10/Materials | Identified exit to Mines 1747 | -10/Materials | Learned Storage emergency access door positions 1778 | -10/Materials | Learned location of 2 exits from Materials 1798 | -10/Materials | Learned Storage trap positions 1812 | -10/Materials | Learned Storage stockpile data 1827 | -10/Materials | Learned location of Storage (-7) 1852 | -10/Materials | Learned 2 Materials zone layouts 1889 | -10/Materials | Learned Storage non-interactive machine intel 2310 | -10/Materials | Entered Mines 2310 | -10/Mines | Accompanied by 1 ally 2311 | -10/Mines | Identified exit to Subcaves 2371 | -10/Mines | Assisted by bots powering up and referring to "LRC-V3" 2648 | -10/Mines | Discovered exit to Materials (range 4) 2673 | -10/Mines | Build established: Commander-Mutant 2700 | -10/Mines | Joined a pair of Derelicts in attacking an 0b10 outpost 2869 | -10/Mines | Learned Materials terminal intel 2874 | -10/Mines | Discovered exit to Materials (range 6) 3161 | -10/Mines | Entered Materials 3161 | -9/Materials | Accompanied by 6 allies 3161 | -9/Materials | Evolved 2 slots: Propulsion x1, Utility x1 3162 | -9/Materials | Identified exit to Mines 3163 | -9/Materials | Identified exit to Materials 3165 | -9/Materials | Loaded intel: 12 terminal locations 3166 | -9/Materials | Led the pair of lost Derelicts to an unsafe place 3692 | -9/Materials | Discovered exit to Materials (range 9) 4074 | -9/Materials | Learned 4 Materials zone layouts 4110 | -9/Materials | Learned Storage stockpile data 4154 | -9/Materials | Learned location of 2 exits from Materials 4165 | -9/Materials | Learned 4 Materials zone layouts 4169 | -9/Materials | Learned Storage trap positions 4185 | -9/Materials | Learned 2 Materials zone layouts 4248 | -9/Materials | Loaded intel: 2 repair station locations 4373 | -9/Materials | Repaired Autogun 4394 | -9/Materials | Build established: Scavenger-Mutant 5677 | -9/Materials | Learned 4 Recycling zone layouts 5810 | -9/Materials | Learned location of 2 exits from Materials 5837 | -9/Materials | Learned Storage trap positions 5873 | -9/Materials | Learned location of 1 exit from Recycling 5918 | -9/Materials | Learned Storage stockpile data 6372 | -9/Materials | Repaired Autogun 6405 | -9/Materials | Repaired Med. Armor Plating 6530 | -9/Materials | Central database locked down 6908 | -9/Materials | Entered Mines 6908 | -9/Mines | Accompanied by 2 allies 6990 | -9/Mines | Learned Materials terminal intel 7279 | -9/Mines | Learned Materials security intel 7304 | -9/Mines | Met a Derelict who couldn't figure out how to use a Trap Extractor 7451 | -9/Mines | Found a Scrap Suit stashed away for nefarious purposes 7529 | -9/Mines | Deemed a non-threat by the Exiles lab entrance 7529 | -9/Mines | Discovered new exit (range 5) 8206 | -9/Mines | Entered Exiles 8206 | -9/Exiles | Found Exiles lab abandoned 8206 | -9/Exiles | Accompanied by 2 allies 8232 | -9/Exiles | Discovered new exit (range 15) 9154 | -9/Exiles | Discovered new exit (range 12) 9179 | -9/Exiles | Entered Mines 9179 | -8/Mines | Accompanied by 2 allies 9954 | -8/Mines | Discovered exit to Materials (range 15) 10275 | -8/Mines | Entered Materials 10275 | -8/Materials | Accompanied by 2 allies 10275 | -8/Materials | Evolved 2 slots: Utility x1, Weapon x1 10276 | -8/Materials | Identified exit to Factory 10279 | -8/Materials | Loaded intel: 12 terminal locations 10568 | -8/Materials | Build established: Scavenger-Tank 11071 | -8/Materials | Identified exit to Garrison 11106 | -8/Materials | Entered Garrison 11106 | -8/Garrison | Accompanied by 1 ally 11162 | -8/Garrison | Phase Generator disabled 11459 | -8/Garrison | Build established: Tank 11627 | -8/Garrison | Triggered checkpoint 11810 | -8/Garrison | Spotted B-75 Beast 11849 | -8/Garrison | Triggered checkpoint 11864 | -8/Garrison | Triggered checkpoint 11909 | -8/Garrison | Triggered checkpoint 12066 | -8/Garrison | Triggered checkpoint 12072 | -8/Garrison | Triggered checkpoint 12476 | -8/Garrison | Discovered new exit (range 7) 12538 | -8/Garrison | Spotted B-75 Beast 12538 | -8/Garrison | Spotted B-75 Beast 12596 | -8/Garrison | Lost 3 allies 12691 | -8/Garrison | Discovered new exit (range 7) 12771 | -8/Garrison | Triggered checkpoint 12866 | -8/Garrison | Discovered new exit (range 65) 12866 | -8/Garrison | Discovered new exit (range 30) 12866 | -8/Garrison | Discovered new exit (range 38) 13132 | -8/Garrison | Triggered checkpoint 13207 | -8/Garrison | Installed Relay Interface Framework 13273 | -8/Garrison | Entered Materials 13574 | -8/Materials | Identified exit to Garrison 14275 | -8/Materials | Discovered exit to Factory (range 3) 15605 | -8/Materials | Entered Garrison 15645 | -8/Garrison | Expanded RIF knowledge: Robot Detection 15852 | -8/Garrison | Triggered checkpoint 15929 | -8/Garrison | Garrison Relay disabled 16154 | -8/Garrison | Triggered checkpoint 16219 | -8/Garrison | Build established: Scientist-Tank 16245 | -8/Garrison | Discovered exit to Factory (range 10) 16267 | -8/Garrison | Triggered checkpoint 16480 | -8/Garrison | Triggered checkpoint 16543 | -8/Garrison | Triggered checkpoint 16579 | -8/Garrison | Triggered checkpoint 16626 | -8/Garrison | Lost 3 parts (1p1u1w) 16736 | -8/Garrison | Triggered checkpoint 16772 | -8/Garrison | Discovered exit to Factory (range 66) 16772 | -8/Garrison | Discovered exit to Factory (range 40) 16772 | -8/Garrison | Discovered exit to Factory (range 32) 17280 | -8/Garrison | Expanded RIF knowledge: Zone Cloak 17392 | -8/Garrison | Entered Factory 17392 | -7/Factory | Evolved 2 slots: Utility x2 17899 | -7/Factory | Identified exit to Garrison 18071 | -7/Factory | Garrison activated, responded to threat 18166 | -7/Factory | Build established: Scavenger-Tank 18592 | -7/Factory | First assault squad dispatched 18643 | -7/Factory | Discovered new exit (range 15) 18780 | -7/Factory | Sucked down chute 18780 | -7/Factory | Entered Waste 18795 | -7/Waste | Spotted C-40 Crusher 18830 | -7/Waste | Spotted C-40 Crusher 18836 | -7/Waste | Spotted C-40 Crusher 18844 | -7/Waste | Spotted C-40 Crusher 18904 | -7/Waste | Spotted C-40 Crusher 18907 | -7/Waste | Spotted C-40 Crusher 19000 | -7/Waste | Discovered new exit (range 10) 19053 | -7/Waste | Build established: Gunner 19122 | -7/Waste | Destroyed C-40 Crusher 19122 | -7/Waste | Destroyed C-40 Crusher 19251 | -7/Waste | Destroyed C-40 Crusher 19342 | -7/Waste | Destroyed C-40 Crusher 19354 | -7/Waste | Destroyed C-40 Crusher 19458 | -7/Waste | Destroyed C-40 Crusher 19587 | -7/Waste | Build established: Tank 19726 | -7/Waste | Warlord forces began an assault 20275 | -7/Waste | Build established: Scavenger-Tank 20560 | -7/Waste | Entered Factory 20560 | -7/Factory | Accompanied by 16 allies 20844 | -7/Factory | Discovered new exit (range 5) 21013 | -7/Factory | Identified exit to Garrison 21031 | -7/Factory | Entered Garrison 21031 | -7/Garrison | Accompanied by 13 allies 21121 | -7/Garrison | Lost 3 allies 21159 | -7/Garrison | Triggered checkpoint 21444 | -7/Garrison | Triggered checkpoint 21458 | -7/Garrison | Triggered checkpoint 21513 | -7/Garrison | Lost 9 allies 21529 | -7/Garrison | Destroyed 8 combat bots 21598 | -7/Garrison | Discovered new exit (range 12) 21717 | -7/Garrison | Triggered checkpoint 21758 | -7/Garrison | Garrison Relay disabled 22108 | -7/Garrison | Discovered new exit (range 10) 22143 | -7/Garrison | Triggered checkpoint 22220 | -7/Garrison | Found embedded Infiltrators 22545 | -7/Garrison | Triggered checkpoint 22568 | -7/Garrison | Expanded RIF knowledge: Code Merge 22752 | -7/Garrison | Triggered checkpoint 22770 | -7/Garrison | Discovered new exit (range 14) 22837 | -7/Garrison | Entered Factory 22837 | -6/Factory | Accompanied by 2 allies 22837 | -6/Factory | Evolved 2 slots: Propulsion x1, Utility x1 22959 | -6/Factory | Identified exit to Garrison 23640 | -6/Factory | Entered Garrison 23640 | -6/Garrison | Accompanied by 5 allies 23680 | -6/Garrison | Discovered new exit (range 50) 23680 | -6/Garrison | Discovered new exit (range 65) 23680 | -6/Garrison | Discovered new exit (range 71) 23849 | -6/Garrison | Triggered checkpoint 23901 | -6/Garrison | Spotted Striker 23901 | -6/Garrison | Spotted Striker 23928 | -6/Garrison | Destroyed Striker 23974 | -6/Garrison | Destroyed Striker 23986 | -6/Garrison | Lost 5 parts (1n3u1w) 24008 | -6/Garrison | Rewired Executioner 24084 | -6/Garrison | Triggered checkpoint 24160 | -6/Garrison | Spotted B-75 Beast 24177 | -6/Garrison | Allies destroyed B-75 Beast 24543 | -6/Garrison | Destroyed Executioner 24555 | -6/Garrison | Found Corrupted Exp. Core Analyzer 24563 | -6/Garrison | Found Corrupted Adv. Kinecellerator 24588 | -6/Garrison | Triggered checkpoint 24732 | -6/Garrison | Triggered checkpoint 25015 | -6/Garrison | Expanded RIF knowledge: Zone Cloak 25270 | -6/Garrison | Triggered checkpoint 25656 | -6/Garrison | Triggered checkpoint 25675 | -6/Garrison | Entered Factory 25675 | -5/Factory | Accompanied by 1 ally 25675 | -5/Factory | Evolved 2 slots: Power x1, Utility x1 25734 | -5/Factory | Build established: Scavenger-Mutant 25751 | -5/Factory | Identified exit to Garrison 26124 | -5/Factory | Build established: Scavenger-Tank 26328 | -5/Factory | Discovered new exit (range 8) 26358 | -5/Factory | Identified exit to Factory 26550 | -5/Factory | Entered Garrison 26578 | -5/Garrison | Lost 4 parts (1p2n1u) 26641 | -5/Garrison | Expanded RIF knowledge: Alert ID Control 26738 | -5/Garrison | Garrison Relay disabled 26907 | -5/Garrison | Build established: Scavenger-Gunner 26939 | -5/Garrison | Triggered checkpoint 26940 | -5/Garrison | Triggered checkpoint 27102 | -5/Garrison | Triggered checkpoint 27238 | -5/Garrison | Expanded RIF knowledge: Autooverride 27331 | -5/Garrison | Discovered exit to Factory (range 3) 27431 | -5/Garrison | Discovered exit to Factory (range 55) 27431 | -5/Garrison | Discovered exit to Factory (range 26) 27431 | -5/Garrison | Discovered exit to Factory (range 31) 27581 | -5/Garrison | Found embedded Infiltrators 27718 | -5/Garrison | Triggered checkpoint 28037 | -5/Garrison | Spotted B-75 Beast 28049 | -5/Garrison | Destroyed B-75 Beast 28077 | -5/Garrison | Lost 3 allies 28172 | -5/Garrison | Found Relay Coupler [Proto] 28301 | -5/Garrison | Triggered checkpoint 28344 | -5/Garrison | Triggered checkpoint 28651 | -5/Garrison | Build established: Bothacker-Tank 28673 | -5/Garrison | Found Gamma Bomb Array 28756 | -5/Garrison | System corruption reached 10% 28766 | -5/Garrison | Entered Factory 28766 | -4/Factory | Evolved 2 slots: Propulsion x1, Utility x1 29006 | -4/Factory | Fabricated M-13 Machinist (x1) 29252 | -4/Factory | Identified exit to Upper Caves 29252 | -4/Factory | Identified exit to Extension 29362 | -4/Factory | Found Exp. System Shield 29460 | -4/Factory | Destroyed 7 combat bots 29722 | -4/Factory | Fabricated M-13 Machinist (x1) 29749 | -4/Factory | Entered Extension 29749 | -4/Extension | Accompanied by 1 ally 30084 | -4/Extension | Destroyed 7 combat bots 30533 | -4/Extension | Rescued a captive Derelict 30535 | -4/Extension | Rescued a captive Derelict 30852 | -4/Extension | Spotted B-86 Titan 30877 | -4/Extension | Spotted B-86 Titan 30883 | -4/Extension | Destroyed B-86 Titan 30893 | -4/Extension | Allies destroyed B-86 Titan 30922 | -4/Extension | Lost 7 allies 31090 | -4/Extension | Rescued a captive Derelict 31091 | -4/Extension | Rescued a captive Derelict 31311 | -4/Extension | Rescued a captive Derelict 31332 | -4/Extension | Build established: Commander-Tank 31504 | -4/Extension | Learned Armory trap positions 31568 | -4/Extension | Rescued a captive Derelict 31577 | -4/Extension | Learned Quarantine stockpile data 31580 | -4/Extension | Rescued a captive Derelict 31581 | -4/Extension | Rescued a captive Derelict 31587 | -4/Extension | Rescued a captive Derelict 31609 | -4/Extension | Rescued a captive Derelict 31685 | -4/Extension | Rescued A7 31687 | -4/Extension | Learned Research emergency access door positions 31706 | -4/Extension | Rescued a captive Derelict 31707 | -4/Extension | Rescued a captive Derelict 31728 | -4/Extension | Learned Research emergency access door positions 31760 | -4/Extension | Learned 4 Proximity Caves zone layouts 31782 | -4/Extension | Learned location of 3 exits from Research 31816 | -4/Extension | Learned 4 Upper Caves zone layouts 31859 | -4/Extension | Learned location of 1 exit from Proximity Caves 31912 | -4/Extension | Learned Armory interactive machine intel 32177 | -4/Extension | Discovered new exit (range 16) 32180 | -4/Extension | Discovered new exit (range 14) 32211 | -4/Extension | Found Quantum Capacitor 32229 | -4/Extension | Entered Cetus 32229 | -4/Cetus | Accompanied by 24 allies (A7) 32234 | -4/Cetus | Acquired a Cetus Manufacturing Module code from A7 32247 | -4/Cetus | Spotted Cetus Guard 32247 | -4/Cetus | Spotted Cetus Guard 32247 | -4/Cetus | Spotted Cetus Guard 32249 | -4/Cetus | Spotted Cetus Guard 32253 | -4/Cetus | Destroyed Cetus Guard 32258 | -4/Cetus | Destroyed Cetus Guard 32258 | -4/Cetus | Allies destroyed Cetus Guard 32261 | -4/Cetus | Allies destroyed Cetus Guard 32483 | -4/Cetus | Started Cetus Manufacturing Module 32508 | -4/Cetus | Manufactured an Enhanced Grunt 32521 | -4/Cetus | Escorted A7 to Cetus Mainframe 32533 | -4/Cetus | Manufactured an Enhanced Grunt 32540 | -4/Cetus | Discovered new exit (range 15) 32558 | -4/Cetus | Manufactured an Enhanced Grunt 32570 | -4/Cetus | Spotted Cetus Guard 32570 | -4/Cetus | Spotted Cetus Guard 32571 | -4/Cetus | Spotted Cetus Guard 32572 | -4/Cetus | Spotted Cetus Guard 32577 | -4/Cetus | Allies destroyed Cetus Guard 32579 | -4/Cetus | Destroyed Cetus Guard 32583 | -4/Cetus | Manufactured an Enhanced Grunt 32585 | -4/Cetus | Destroyed Cetus Guard 32593 | -4/Cetus | Allies destroyed Cetus Guard 32599 | -4/Cetus | Discovered new exit (range 15) 32607 | -4/Cetus | Met Revision 17 32608 | -4/Cetus | Manufactured an Enhanced Grunt 32899 | -4/Cetus | Murdered A7 32900 | -4/Cetus | Extracted ID and sensor layout for unrecognized location from A7's data core 32979 | -4/Cetus | Security sweep announced 32991 | -4/Cetus | Entered Archives 32991 | -4/Archives | Accompanied by 20 allies 33257 | -4/Archives | Discovered new exit (range 14) 33319 | -4/Archives | Discovered new exit (range 15) 33362 | -4/Archives | Discovered new exit (range 13) 33608 | -4/Archives | Build established: Commander-Gunner 33729 | -4/Archives | System corruption reached 10% 34141 | -4/Archives | Entered Hub_04(d) 34141 | -4/Hub_04(d) | Accompanied by 15 allies 34176 | -4/Hub_04(d) | Found Exp. Signal Interpreter 34227 | -4/Hub_04(d) | Discovered new exit (range 9) 34280 | -4/Hub_04(d) | Lost 6 allies 34500 | -4/Hub_04(d) | Build established: Scavenger-Gunner 34543 | -4/Hub_04(d) | Discovered new exit (range 9) 34556 | -4/Hub_04(d) | Identified exit to Garrison 34640 | -4/Hub_04(d) | Lost 3 allies 35053 | -4/Hub_04(d) | Network Hub disabled 35102 | -4/Hub_04(d) | Spotted Lightning 35109 | -4/Hub_04(d) | Entered Research 35109 | -3/Research | Accompanied by 1 ally 35109 | -3/Research | Evolved 2 slots: Propulsion x1, Utility x1 35110 | -3/Research | Identified exit to Testing 35111 | -3/Research | Identified exit to Research 35111 | -3/Research | Identified exit to Armory 35309 | -3/Research | Revision forces began assault on 0b10 35333 | -3/Research | Met up with Revision 17++ 35376 | -3/Research | Lost 3 allies 35396 | -3/Research | Build established: Scavenger-Tank 35809 | -3/Research | Research terminal network offline 35859 | -3/Research | Spotted Striker 35860 | -3/Research | Spotted Striker 35863 | -3/Research | Destroyed Striker 35867 | -3/Research | Destroyed Striker 35924 | -3/Research | Spotted Striker 35928 | -3/Research | P-80 Master assimilated allied Smith 8a 36038 | -3/Research | Spotted Striker 36057 | -3/Research | Spotted Executioner 36068 | -3/Research | Destroyed Executioner 36604 | -3/Research | Spotted Striker 36645 | -3/Research | Spotted Striker 36647 | -3/Research | Spotted Striker 36654 | -3/Research | Destroyed Striker 36797 | -3/Research | Spotted Striker 36798 | -3/Research | Spotted Executioner 36805 | -3/Research | Destroyed Striker 36834 | -3/Research | Lost 3 allies 36994 | -3/Research | Entered Testing 37083 | -3/Testing | Found Prototype Device 37083 | -3/Testing | Identified AEGIS Remote Shield 37577 | -3/Testing | Found Prototype Ballistic Cannon 37577 | -3/Testing | Identified Perforator 37828 | -3/Testing | Destroyed 11 combat bots 38001 | -3/Testing | Found Prototype Device 38001 | -3/Testing | Identified Exp. Hardlight Generator 38244 | -3/Testing | First assault squad dispatched 38260 | -3/Testing | Fabricated M-13 Machinist (x1) 38505 | -3/Testing | Found Prototype Energy Cannon 38622 | -3/Testing | Found Prototype Processor 38622 | -3/Testing | Identified Exp. Target Analyzer 38623 | -3/Testing | System corruption reached 10% 38771 | -3/Testing | Discovered exit to Research (range 5) 38808 | -3/Testing | Lost 5 parts (1p3u1w) 38816 | -3/Testing | Destroyed 21 combat bots 38948 | -3/Testing | Found Prototype Device 38948 | -3/Testing | Identified Exp. Thermal Shield 39069 | -3/Testing | Found Gamma Bomb Array 39093 | -3/Testing | Found Prototype Processor 39093 | -3/Testing | Identified Spectral Analyzer 39193 | -3/Testing | Entered Research 39193 | -2/Research | Evolved 2 slots: Power x1, Utility x1 39195 | -2/Research | Identified Potential Cannon 39327 | -2/Research | Found Prototype Device 39327 | -2/Research | Identified Exp. Sensor Array 39331 | -2/Research | Found Exp. Sensor Array 39560 | -2/Research | Build established: Scavenger-Skirmisher 39693 | -2/Research | First assault squad dispatched 39829 | -2/Research | Garrison activated, responded to threat 39858 | -2/Research | Found Prototype Processor 39858 | -2/Research | Identified Exp. Melee Analysis Suite 40139 | -2/Research | Build established: Scavenger-Gunner 40497 | -2/Research | Destroyed 10 combat bots 40673 | -2/Research | System corruption reached 10% 40700 | -2/Research | Destroyed 10 combat bots 40710 | -2/Research | Lost 8 parts (3p1n3u1w) 40885 | -2/Research | High security lockdown imminent 40965 | -2/Research | High security lockdown engaged 41325 | -2/Research | Spotted Investigator 41328 | -2/Research | Destroyed Investigator 41368 | -2/Research | Destroyed 27 combat bots 41649 | -2/Research | Sterilization system engaged 41649 | -2/Research | Non-combat units ordered to evacuate 41749 | -2/Research | Combat units ordered to evacuate 41765 | -2/Research | Destroyed 69 combat bots 41949 | -2/Research | Ambient heat levels rising (+10) 42099 | -2/Research | Ambient heat levels rising (+10) 42181 | -2/Research | Discovered new exit (range 4) 42249 | -2/Research | Ambient heat levels rising (+10) 42399 | -2/Research | Ambient heat levels rising (+10) 42535 | -2/Research | Build established: Scavenger-Mutant 42549 | -2/Research | Ambient heat levels rising (+10) 42662 | -2/Research | Found Prototype Device 42662 | -2/Research | Identified Exp. Thermal Defense Suite 42699 | -2/Research | Ambient heat levels rising (+10) 42849 | -2/Research | Ambient heat levels rising (+10) 42999 | -2/Research | Ambient heat levels rising (+10) 43103 | -2/Research | Entered Quarantine 43117 | -2/Quarantine | Identified exit to Garrison 43153 | -2/Quarantine | Found Alien Artifact 43153 | -2/Quarantine | Identified Subatomic Replicator 43179 | -2/Quarantine | Build established: Scavenger-Gunner 43260 | -2/Quarantine | Found Alien Artifact 43263 | -2/Quarantine | Found Alien Artifact 43298 | -2/Quarantine | Found Alien Slashing Weapon 43298 | -2/Quarantine | Identified Sigix Broadsword 43321 | -2/Quarantine | Unchained authorized (CL-0N3) 43353 | -2/Quarantine | First assault squad dispatched 43353 | -2/Quarantine | Entered Garrison 43551 | -2/Garrison | Build established: Scavenger-Mutant 43591 | -2/Garrison | Rescued a captive Derelict 43591 | -2/Garrison | Rescued a captive Derelict 43715 | -2/Garrison | Triggered checkpoint 43837 | -2/Garrison | Spotted B-90 Cyclops 43841 | -2/Garrison | Identified Hpw. Transdimensional Reconstructor (x2) 43841 | -2/Garrison | Warped through subspace 43841 | -2/Garrison | Discovered new exit (range 10) 43847 | -2/Garrison | Triggered checkpoint 43853 | -2/Garrison | Entered Section 7 44004 | -2/Section 7 | Spotted S7 Guard 44021 | -2/Section 7 | Destroyed S7 Guard 44025 | -2/Section 7 | Found Corrupted Prototype Protection 44041 | -2/Section 7 | Found Alien Artifact 44041 | -2/Section 7 | Identified Navigation Efficiency Matrix 44041 | -2/Section 7 | Installed Navigation Efficiency Matrix, process failed with unexpected side effects 44077 | -2/Section 7 | Identified Hvy. Regenerative Plating 44081 | -2/Section 7 | Found Alien Artifact 44103 | -2/Section 7 | Found Alien Artifact 44103 | -2/Section 7 | Identified Integrity Redistributor 44103 | -2/Section 7 | Used Integrity Redistributor, redistributed integrity from core (-140) 44134 | -2/Section 7 | Central database locked down 44228 | -2/Section 7 | Crushed by falling debris 44280 | -2/Section 7 | Spotted S7 Guard 44298 | -2/Section 7 | Destroyed S7 Guard 44309 | -2/Section 7 | System corruption reached 30% 44332 | -2/Section 7 | Found Alien Artifact 44332 | -2/Section 7 | Identified Integrated Thermoelectric Network 44332 | -2/Section 7 | Installed Integrated Thermoelectric Network, gained heat-energy exchange potential 44353 | -2/Section 7 | First assault squad dispatched 44375 | -2/Section 7 | Spotted S7 Guard 44405 | -2/Section 7 | Destroyed S7 Guard 44416 | -2/Section 7 | Found Alien Artifact 44416 | -2/Section 7 | Identified Core Membrane 44416 | -2/Section 7 | Installed Core Membrane, gained immunity to corruption 44647 | -2/Section 7 | Garrison activated, responded to threat 44674 | -2/Section 7 | High security lockdown imminent 44685 | -2/Section 7 | Identified Microwarp Drive 44694 | -2/Section 7 | Found Alien Artifact 44694 | -2/Section 7 | Identified Spacefold Activator 44698 | -2/Section 7 | Core integrity fell below 50% 44754 | -2/Section 7 | High security lockdown engaged 44790 | -2/Section 7 | Spotted Executioner 44790 | -2/Section 7 | Spotted Executioner 44830 | -2/Section 7 | Found Hpw. Transdimensional Reconstructor 44857 | -2/Section 7 | Spotted Striker 44857 | -2/Section 7 | Spotted Striker 44952 | -2/Section 7 | Found Alien Artifact 44952 | -2/Section 7 | Identified Integrated Reactor 44952 | -2/Section 7 | Installed Integrated Reactor, increased core energy generation (+10) 44975 | -2/Section 7 | Build established: Mutant 45000 | -2/Section 7 | Found Alien Artifact 45000 | -2/Section 7 | Identified LRC Matter Compressor 45000 | -2/Section 7 | Installed LRC Matter Compressor, increased matter storage capacity (+125) 45027 | -2/Section 7 | Found Alien Artifact 45027 | -2/Section 7 | Identified LRC Insulator 45027 | -2/Section 7 | Installed LRC Insulator, 1 resistance modified: EM +25% 45030 | -2/Section 7 | Found LRC Insulator 45030 | -2/Section 7 | Installed LRC Insulator, 1 resistance modified: EM +25% 45041 | -2/Section 7 | Core integrity fell below 20% 45097 | -2/Section 7 | Warped through subspace 45136 | -2/Section 7 | Found Alien Artifact 45245 | -2/Section 7 | Spotted Striker 45245 | -2/Section 7 | Identified Transdimensional Reconstructor 45245 | -2/Section 7 | Warped through subspace 45246 | -2/Section 7 | Warped through subspace 45265 | -2/Section 7 | Spotted Executioner 45287 | -2/Section 7 | Spotted Executioner 45298 | -2/Section 7 | Destroyed Executioner 45308 | -2/Section 7 | Destroyed Executioner 45340 | -2/Section 7 | Destroyed 7 combat bots 45344 | -2/Section 7 | Core destroyed Last Messages --------------- 45305_ Executioner overheating. 45306_ Executioner heat damages Exp. Core Analyzer, Imp. Armor Integrity Analyzer. 45306_ Executioner overheating. 45307_ Thunder Leg destroyed. 45307_ Executioner overheating. 45308_ System corrupted: Energy discharge (-40). 45308_ Executioner heat spikes uncontrollably. 45308_ Executioner destroyed. 45319_ G-73 Enforcer system terminally corrupted. 45319_ Adv. Heat Sink fried. 45320_ Acquired Adv. Energy Well. 45322_ Acquired 79 matter. 45322_ Acquired 38 matter. 45322_ Acquired 89 matter. 45322_ Acquired 43 matter. 45326_ System corrupted: Matter fused (-7). 45331_ Navigation matrix triggers involuntary quantum shift. 45341_ 8NMP ZJEA<|RJ>OYWJ=,8YBBW1